Workbook

Sheet Übersichtsblatt
B2: Eingabe von Plandaten | G2: Eingabe von Istdaten
B4: Stammdatenblatt | D4: Allgemeine Angaben
G5: Gewinn- und Verlustrechung IST
B6: Plan Gewinn- und Verlustrechnung
G7: Bilanz IST
C8: Umsatzplanung
C10: Bestandsveränderungen | G10: Auswertungen
C12: Aktivierte Eigenleistungen
G13: SOLL-IST-Vergleich G+V
C14: Waren- und Materialeinsatz
G15: SOLL-IST-Vergleich Bilanz
C16: Personalplanung
G17: Kennzahlen
C18: Sonstiger Aufwand
G19: V./Kap.-Struktur
C20: Steuerberechnung
G21: Erfolgsrechnung
B22: Investitionsplanung
G23: Druckbereich
B24: Planbilanz
B26: Liquiditätsplanung

Sheet Deckblatt - Unternehmensplan
A1: Unternehmensplan
A2: von
A4: =Stammdaten!D5 -> BigNet Netzwerklösungen GmbH
C7: für die Geschäftsjahre | D7: =Stammdaten!$H$8 -> 2017 | E7: bis | F7: =D7+2 -> 2019
B11: Datum und Uhrzeit des Ausdrucks: | F11: =NOW() -> 2018-05-18T13:39:28.480

Sheet Stammdaten
A1: Deckblatt - Unternehmensplan | D1: Übersicht | G1: =+Übersichtsblatt!D4 -> Allgemeine Angaben
A3: Stammdatenblatt
A5: Unternehmen | B5: Name der Unternehmung: | D5: BigNet Netzwerklösungen GmbH
B6: Gesellschaftsform: | D6: GmbH | E6: =IF(OR(D6="GmbH",D6="AG"),1,2) -> 1
B7: Anzahl der Gesellschafter: | D7: 3 | E7: Stammkapital/Einlage EURO: | H7: 35000
B8: Sitz (Bundesland): | D8: Steiermark | G8: 1. Planjahr: | H8: 2017
B9: Adresse | C9: Internetcity 20 | E9: Plz.: | F9: 8815 | G9: Ort: | H9: Grambach
A11: Gesellschafter 1 | B11: Vorname: | C11: Max | E11: Name: | F11: Gründer
B12: Titel: | D12: Geburtsdatum: | G12: sonst. Einkünfte:
B13: Adresse: | E13: Plz.: | G13: Ort:
B14: Beteiligungshöhe in %: | D14: 0.25 | E14: =IF(D6<>"Einzelunternehmen","beteiligt als:","") -> beteiligt als: | G14: Gesellschafter
A16: Gesellschafter 2 | B16: Vorname: | C16: Resi | E16: Name: | F16: Algorithma
B17: Titel: | D17: Geburtsdatum: | G17: sonst. Einkünfte:
B18: Adresse: | E18: Plz.: | G18: Ort:
B19: Beteiligungshöhe in %: | D19: 0.25 | E19: =IF(D6<>"Einzelunternehmen","beteiligt als:","") -> beteiligt als: | G19: Gesellschafter
A21: Gesellschafter 3 | B21: Vorname: | C21: Franz | E21: Name: | F21: Flüssig
B22: Titel: | D22: Geburtsdatum: | G22: sonst. Einkünfte:
B23: Adresse: | E23: Plz.: | G23: Ort:
B24: Beteiligungshöhe in %: | D24: 0.5 | E24: =IF(D6<>"Einzelunternehmen","beteiligt als:","") -> beteiligt als: | G24: Gesellschafter
A26: Gesellschafter 4 | B26: Vorname: | E26: Name:
B27: Titel: | D27: Geburtsdatum: | G27: sonst. Einkünfte:
B28: Adresse: | E28: Plz.: | G28: Ort:
B29: Beteiligungshöhe in %: | E29: =IF(D6<>"Einzelunternehmen","beteiligt als:","") -> beteiligt als:
A31: Gesellschafter 5 | B31: Vorname: | E31: Name:
B32: Titel: | D32: Geburtsdatum: | G32: sonst. Einkünfte:
B33: Adresse: | E33: Plz.: | G33: Ort:
B34: Beteiligungshöhe in %: | E34: =IF(D6<>"Einzelunternehmen","beteiligt als:","") -> beteiligt als:
A36: Gesellschafter 6 | B36: Vorname: | E36: Name:
B37: Titel: | D37: Geburtsdatum: | G37: sonst. Einkünfte:
B38: Adresse: | E38: Plz.: | G38: Ort:
B39: Beteiligungshöhe in %: | E39: =IF(D6<>"Einzelunternehmen","beteiligt als:","") -> beteiligt als:

Sheet Allg.Angaben
A1: =+Übersichtsblatt!B4 -> Stammdatenblatt | D1: Übersicht | G1: =+Übersichtsblatt!B6 -> Plan Gewinn- und Verlustrechnung
A3: Allgemeine Angaben
D5: =Liquidität!D$7 -> 2017 | E5: =Liquidität!E$7 -> 2018 | F5: =Liquidität!F$7 -> 2019
A6: Körperschaftsteuersatz % | D6: 0.25 | E6: 0.25 | F6: 0.25
A8: Verlustvortragsgrenze % KStG (KapGes) | D8: 0.75 | E8: 0.75 | F8: 0.75
A9: Verlustvortragsgrenze % EStG (PerGes) | D9: 1 | E9: 1 | F9: 1
A12: Soziale Lasten
A14: Jahr | B14: HBmGl. | C14: DB zur SV% | D14: DB% (FLAF) | E14: DZ%* | F14: KommSt% | G14: BV-Kasse% | H14: DB (U-Bahn)** | K14: Dienstgeberzuschläge* pro Bundesland | M14: Dienstgeberbeitrag** U-Bahn Steuer/ pro Woche
A15: =Stammdaten!H8 -> 2017 | B15: 4980 | C15: 0.2148 | D15: 0.041 | E15: =IF(Stammdaten!D8=Allg.Angaben!K15,Allg.Angaben!L15,IF(Stammdaten!D8=Allg.Angaben!K16,Allg.Angaben!L16,IF(Stammdaten!D8=Allg.Angaben!K17,Allg.Angaben!L17,IF(Stammdaten!D8=Allg.Angaben!K18,Allg.Angaben!L18,IF(Stammdaten!D8=Allg.Angaben!K19,Allg.Angaben!L19,IF(Stammdaten!D8=Allg.Angaben!K20,Allg.Angaben!L20,IF(Stammdaten!D8=Allg.Angaben!K21,Allg.Angaben!L21,IF(Stammdaten!D8=Allg.Angaben!K22,Allg.Angaben!L22,IF(Stammdaten!D8=Allg.Angaben!K23,Allg.Angaben!L23,))))))))) -> 0.0039 | F15: 0.03 | G15: 0.0153 | H15: =IF(Stammdaten!D8=Allg.Angaben!M15,Allg.Angaben!N15*52,0) -> 0 | K15: Burgenland | L15: 0.0044 | M15: Wien | N15: 2
A16: =A15+1 -> 2018 | B16: =B15*1.03 -> 5129.4 | C16: 0.2148 | D16: 0.041 | E16: =+E15 -> 0.0039 | F16: 0.03 | G16: 0.0153 | H16: =+H15 -> 0 | K16: Wien | L16: 0.004
A17: =A16+1 -> 2019 | B17: =B16*1.03 -> 5283.282 | C17: 0.2148 | D17: 0.041 | E17: =+E16 -> 0.0039 | F17: 0.03 | G17: 0.0153 | H17: =+H16 -> 0 | K17: Niederösterreich | L17: 0.004
A18: * unterschiedliche Prozentsätze pro Bundesland | K18: Steiermark | L18: 0.0039
A19: ** auschließlich für DN im Bundesland Wien | K19: Oberösterreich | L19: 0.0036
K20: Salzburg | L20: 0.0042
A21: Tarifstufen des Einkommensteuergesetzes (§ 33 Abs 1 EStG) | K21: Kärnten | L21: 0.0041
K22: Tirol | L22: 0.0043
E23: Betrag | F23: EK-Steuer | G23: Steuersatz | K23: Vorarlberg | L23: 0.0039
A24: Tarifstufe I: | B24: bis EUR | E24: 11000 | G24: 0
A25: Tarifstufe II: | B25: bis EUR | E25: 18000 | F25: =(E25-E24)*G25 -> 1750 | G25: 0.25
A26: Tarifstufe III: | B26: bis EUR | E26: 31000 | F26: =(E26-E25)*G26 -> 4550 | G26: 0.35
A27: Tarifstufe IV: | B27: bis EUR | E27: 60000 | F27: =(E27-E26)*G27 -> 12180 | G27: 0.42
A28: Tarifstufe V: | B28: bis EUR | E28: 90000 | F28: =(E28-E27)*G28 -> 14400 | G28: 0.48
A29: Tarifstufe VI: | B29: über EUR | E29: 90000 | G29: 0.5
A30: Tarifstrufe VII*: | B30: über EUR | E30: 1000000 | F30: =(E30-E29)*G29 -> 455000 | G30: 0.55
A31: * Für Einkommensteile über eine Million Euro, beträgt der Steuersatz in den Kalenderjahren 2016 bis 2020 55%
A34: Angaben zu Liquidität und Umsatzsteuer
A36: Bitte schätzen Sie zu nachfolgenden Positionen die im laufenden Jahr zufließenden Beträge
B38: =Liquidität!D7 -> 2017 | E38: =Liquidität!E7 -> 2018 | H38: =Liquidität!F7 -> 2019
B39: Vereinnahmte Umsätze in % | C39: USt-pflichtige Umsätze in % | D39: Umsatz-steuer in % | E39: Vereinnahmte Umsätze in % | F39: USt-pflichtige Umsätze in % | G39: Umsatzsteuer in % | H39: Vereinnahmte Umsätze in % | I39: USt-pflichtige Umsätze in % | J39: Umsatzsteuer in %
A40: Umsatzerlöse | B40: 0.85 | C40: 1 | D40: 0.2 | E40: 0.85 | F40: 1 | G40: 0.2 | H40: 0.85 | I40: 1 | J40: 0.2
A41: Sonst. Erträge | B41: 0.5 | C41: 1 | D41: 0.2 | E41: 0.5 | F41: 1 | G41: 0.2 | H41: 0.5 | I41: 1 | J41: 0.2
B43: Im laufenden Jahr bezahlt in % | C43: USt-pflichtige Einkäufe in % | D43: Umsatz-steuer in % | E43: Im laufenden Jahr bezahlt in % | F43: USt-pflichtige Einkäufe in % | G43: Umsatzsteuer in % | H43: Im laufenden Jahr bezahlt in % | I43: USt-pflichtige Einkäufe in % | J43: Umsatzsteuer in %
A44: Zahlungen/ Einkauf | B44: 0.9 | C44: 0 | D44: 0.2 | E44: 0.9 | F44: 0 | G44: 0.2 | H44: 0.9 | I44: 0 | J44: 0.2
B46: Im laufenden Jahr bezahlt in % | C46: USt-pflichtige Einkäufe in % | D46: Umsatz-steuer in % | E46: Im laufenden Jahr bezahlt in % | F46: USt-pflichtige Einkäufe in % | G46: Umsatz-steuer in % | H46: Im laufenden Jahr bezahlt in % | I46: USt-pflichtige Einkäufe in % | J46: Umsatzsteuer in %
A47: USt.-Zahlungen | B47: 0.83 | E47: 0.83 | H47: 0.83
A48: so. Aufwand | B48: 0.85 | C48: 1 | D48: 0.2 | E48: 0.98 | F48: 1 | G48: 0.2 | H48: 0.98 | I48: 1 | J48: 0.2
B50: =Liquidität!$D$7 -> 2017 | C50: =Liquidität!E7 -> 2018 | D50: =Liquidität!F7 -> 2019
B51: Zinsenzu- und -abfluß in %
A52: =Liquidität!B25 -> Zinseinnahmen | B52: 1 | C52: 1 | D52: 1
A53: =Liquidität!B26 -> Zinsausgaben | B53: 1 | C53: 1 | D53: 1

Sheet Plan G+V
B1: =+Übersichtsblatt!D4 -> Allgemeine Angaben | D1: Übersicht | G1: =+Übersichtsblatt!C8 -> Umsatzplanung
C3: =Stammdaten!D5 -> BigNet Netzwerklösungen GmbH
A5: Plan Gewinn- und Verlustrechnung
A6: für die ersten drei Geschäftsjahre
D8: Jahr 1 | F8: Jahr 2 | H8: Jahr 3
A9: Nr | B9: Posten | C9: Anmerkung | D9: =Stammdaten!H8 -> 2017 | F9: =IF(D9>1801,D9+1,"") -> 2018 | H9: =IF(F9="","",F9+1) -> 2019
A10: 1 | B10: Umsatzerlöse | D10: ='Blatt 1 Umsätze'!D26 -> 150000 | E10: =IF(D$13=0,0,+D10/D$13) -> 0.9646302251 | F10: ='Blatt 1 Umsätze'!E26 -> 488937.5 | G10: =IF(F$13=0,0,+F10/F$13) -> 0.9812357324 | H10: ='Blatt 1 Umsätze'!F26 -> 826625 | J10: =IF(H$13=0,0,+H10/H$13) -> 1.009464204
A11: 2 | B11: (+/-) Bestandsveränderungen | D11: ='Blatt 2 BÄ'!D26 -> 3000 | E11: 0.0192926045 | F11: ='Blatt 2 BÄ'!E26 -> 7000 | G11: 0.01404811479 | H11: ='Blatt 2 BÄ'!F26 -> -10000 | J11: -0.01221187605
A12: 3 | B12: Aktivierte Eigenleistungen | D12: ='Blatt 3 AktE'!E27 -> 2500 | E12: 0.01607717042 | F12: ='Blatt 3 AktE'!F27 -> 2350 | G12: 0.004716152823 | H12: ='Blatt 3 AktE'!G27 -> 2250 | J12: 0.002747672111
A13: 4 | B13: Betriebsleistung | D13: =SUM(D10:D12) -> 155500 | E13: 1 | F13: =SUM(F10:F12) -> 498287.5 | G13: 1 | H13: =SUM(H10:H12) -> 818875 | J13: 1
A14: 5 | B14: Sonstige betriebl. Erträge | D14: ='Blatt 1 Umsätze'!D32 -> 0 | E14: 0 | F14: ='Blatt 1 Umsätze'!E32 -> 0 | G14: 0 | H14: ='Blatt 1 Umsätze'!F32 -> 100 | J14: 0.0001221187605
A15: 6 | B15: Betriebsertrag | D15: =SUM(D13:D14) -> 155500 | E15: 1 | F15: =SUM(F13:F14) -> 498287.5 | G15: 1 | H15: =SUM(H13:H14) -> 818975 | J15: 1.000122119
A16: 7 | B16: (-) Wareneinsatz | D16: ='Blatt 4 WES'!D21*-1 -> -100 | E16: -0.0006430868167 | F16: =-'Blatt 4 WES'!E21 -> -100 | G16: -0.0002006873542 | H16: =-'Blatt 4 WES'!F21 -> -100 | J16: -0.0001221187605
A17: 8 | B17: (-) Personalaufwand | D17: =-'Blatt 5 Pers'!D26 -> -231420 | E17: -1.488231511 | F17: =-'Blatt 5 Pers'!E26 -> -374047.8 | G17: -0.7506666332 | H17: =-'Blatt 5 Pers'!F26 -> -431632.404 | J17: -0.5271041417
A18: 9 | B18: (-) Abschreibung | D18: =-Investitionen!E47-'Blatt 3 AktE'!E28 -> -12707.33333 | E18: -0.08171918542 | F18: =-Investitionen!F47-'Blatt 3 AktE'!F28 -> -15955.33333 | G18: -0.03202033632 | H18: =-Investitionen!G47-'Blatt 3 AktE'!G28 -> -16405.33333 | J18: -0.02003398972
A19: 10 | B19: (-) Sonst. betriebl. Aufwand | D19: =-'Blatt 6 S. Aufw'!D24 -> -37900 | E19: -0.2437299035 | F19: =-'Blatt 6 S. Aufw'!E24 -> -45540 | G19: -0.0913930211 | H19: =-'Blatt 6 S. Aufw'!F24 -> -55309 | J19: -0.06754266524
A20: 11 | B20: Betriebsaufwand | D20: =SUM(D16:D19) -> -282127.3333 | E20: -1.814323687 | F20: =SUM(F16:F19) -> -435643.1333 | G20: -0.874280678 | H20: =SUM(H16:H19) -> -503446.7373 | J20: -0.6148029154
A21: 12 | B21: Betriebsergebnis | D21: =D15+D20 -> -126627.3333 | E21: -0.814323687 | F21: =F15+F20 -> 62644.36667 | G21: 0.125719322 | H21: =H15+H20 -> 315528.2627 | J21: 0.3853192034 | L21: Formel für Jahr 1
A22: 13 | B22: (+) Zinserträge | C22: Eingabe erforderlich | D22: =Planbilanz!D26*Planbilanz!G26 -> 118.0070352 | E22: 0.000758887686 | F22: =+Planbilanz!E26*Planbilanz!H26 -> 166.1177489 | G22: 0.0003333773151 | H22: =+Planbilanz!F26*Planbilanz!I26 -> 778.2340478 | J22: 0.0009503697729 | L22: =Planbilanz!D26*Planbilanz!G26
A23: 14 | B23: (-) Zinsaufwand | D23: =-Liquidität!D93 -> -4500 | E23: -0.02893890675 | F23: =-Liquidität!E93 -> -5500 | G23: -0.01103780448 | H23: =-Liquidität!F93 -> 0 | J23: 0
A24: 15 | B24: Finanzergebnis | D24: =SUM(D22:D23) -> -4381.992965 | E24: -0.02818001907 | F24: =SUM(F22:F23) -> -5333.882251 | G24: -0.01070442717 | H24: =SUM(H22:H23) -> 778.2340478 | J24: 0.0009503697729
A25: 16 | B25: Ergebnis | D25: =D21+D24 -> -131009.3263 | E25: -0.8425037061 | F25: =F21+F24 -> 57310.48442 | G25: 0.1150148948 | H25: =H21+H24 -> 316306.4967 | J25: 0.3862695732
A26: 17 | B26: (+) a.o.Erträge | C26: Eingabe erforderlich | E26: 0 | G26: 0 | J26: 0
A27: 18 | B27: (-) a.o.Aufwendungen | C27: Eingabe erforderlich | E27: 0 | G27: 0 | J27: 0
A28: 19 | B28: (-) Ertragsteuern | D28: =SUM('Blatt 7 Steuern'!D18+'Blatt 7 Steuern'!D20) -> -500 | E28: -0.003215434084 | F28: =SUM('Blatt 7 Steuern'!E18+'Blatt 7 Steuern'!E20) -> -3081.905276 | G28: -0.006184994157 | H28: =SUM('Blatt 7 Steuern'!F18+'Blatt 7 Steuern'!F20) -> -57070.00843 | J28: -0.06969318691
A29: 20 | B29: Gewinn/Verlust | D29: =SUM(D25:D28) -> -131509.3263 | E29: -0.8457191402 | F29: =SUM(F25:F28) -> 54228.57914 | G29: 0.1088299007 | H29: =SUM(H25:H28) -> 259236.4883 | J29: 0.3165763862
A30: 21 | B30: Entnahmen/Ausschüttungen | D30: =Liquidität!D20 -> 0 | F30: =Liquidität!E20 -> 0 | H30: =Liquidität!F20 -> 0
A31: 22 | B31: Bilanzgewinn/verlust | D31: =+D29+D30 -> -131509.3263 | F31: =+D31+F29+F30 -> -77280.74716 | H31: =+F31+H29+H30 -> 181955.7411

Sheet Blatt 1 Umsätze
B1: =+Übersichtsblatt!B6 -> Plan Gewinn- und Verlustrechnung | D1: Übersicht | F1: =+Übersichtsblatt!C10 -> Bestandsveränderungen
C3: ='Plan G+V'!C3 -> BigNet Netzwerklösungen GmbH
A5: Umsätze und sonstige betriebliche Erträge
A6: für die ersten drei Geschäftsjahre
D8: Jahr 1 | E8: Jahr 2 | F8: Jahr 3 | H8: =D8 -> Jahr 1 | J8: =E8 -> Jahr 2 | L8: =F8 -> Jahr 3
B9: Posten | C9: Anmerkung | D9: ='Plan G+V'!D9 -> 2017 | E9: ='Plan G+V'!F9 -> 2018 | F9: ='Plan G+V'!H9 -> 2019 | H9: =D9 -> 2017 | J9: =E9 -> 2018 | L9: =F9 -> 2019
A10: Waren/Produkte/Dienstleistungen INLAND | H10: Preis | I10: Menge | J10: Preis | K10: Menge | L10: Preis | M10: Menge
A11: 1 | B11: Consulting Vertrag 1 | C11: ab Jahr 1 | D11: =H11*I11 -> 56250 | E11: =J11*K11 -> 56250 | F11: =L11*M11 -> 59625 | H11: 1250 | I11: 45 | J11: 1250 | K11: 45 | L11: =+J11*1.06 -> 1325 | M11: 45
A12: 2 | B12: Consulting Vertrag 2 | C12: ab Jahr 1 | D12: =H12*I12 -> 25000 | E12: =J12*K12 -> 25000 | F12: =L12*M12 -> 26500 | H12: 1250 | I12: 20 | J12: 1250 | K12: 20 | L12: =+J12*1.06 -> 1325 | M12: 20
A13: 3 | B13: Consulting Vertrag 3 | C13: ab Jahr 1 | D13: 31250 | E13: 31250 | F13: 33125 | H13: 1250 | I13: 25 | J13: 1250 | K13: 25 | L13: =+J13*1.06 -> 1325 | M13: 25
A14: 4 | B14: Consulting Vertrag 4 | C14: ab Jahr 1 | D14: 37500 | E14: 75000 | F14: 79500 | H14: 1250 | I14: 30 | J14: 1250 | K14: 60 | L14: =+J14*1.06 -> 1325 | M14: 60
A15: 5 | B15: Consulting Vertrag 5 | C15: ab Jahr 2 | D15: 0 | E15: 49687.5 | F15: 99375 | J15: 1325 | K15: 37.5 | L15: 1325 | M15: 75
A16: 6 | B16: Consulting Vertrag 6 | C16: ab Jahr 2 | D16: 0 | E16: 251750 | F16: 397500 | J16: 1325 | K16: 190 | L16: 1325 | M16: 300
A17: 7 | B17: Consulting Vertrag 7 | C17: ab Jahr 3 | D17: 0 | E17: 0 | F17: 106000 | L17: 1325 | M17: 80
A18: 8 | B18: Umsatzerlöse Inland | D18: =SUM(D11:D17) -> 150000 | E18: =SUM(E11:E17) -> 488937.5 | F18: =SUM(F11:F17) -> 801625
A19: Waren/Produkte/Dienstleistungen AUSLAND
A20: 9 | B20: Netzwerkarchitektiur - HotChat.de | C20: Jahr 3 | D20: 0 | E20: 0 | F20: 25000 | L20: 25000 | M20: 1
A21: 10 | D21: 0 | E21: 0 | F21: 0
A22: 11 | D22: 0 | E22: 0 | F22: 0
A23: 12 | D23: 0 | E23: 0 | F23: 0
A24: 13 | D24: 0 | E24: 0 | F24: 0
A25: 14 | B25: Umsatzerlöse Ausland | D25: =SUM(D20:D24) -> 0 | E25: =SUM(E20:E24) -> 0 | F25: =SUM(F20:F24) -> 25000
A26: Summe Umsatzerlöse | D26: =D25+D18 -> 150000 | E26: =E25+E18 -> 488937.5 | F26: =F25+F18 -> 826625
A27: Sonstige betriebl. Erträge
A28: 15 | B28: Anlagenverkauf - Computer | C28: Jahr 2 | D28: 0 | E28: 0 | F28: =L28*M28 -> 100 | L28: 100 | M28: 1
A29: 16 | D29: 0 | E29: 0 | F29: 0
A30: 17 | D30: 0 | E30: 0 | F30: 0
A31: 18 | D31: 0 | E31: 0 | F31: 0
A32: Summe sonstige betrieblich Erträge | D32: =SUM(D28:D31) -> 0 | E32: =SUM(E28:E31) -> 0 | F32: =SUM(F28:F31) -> 100

Sheet Blatt 2 BÄ
B1: =+Übersichtsblatt!C8 -> Umsatzplanung | D1: Übersicht | F1: =+Übersichtsblatt!C12 -> Aktivierte Eigenleistungen
C3: ='Plan G+V'!C3 -> BigNet Netzwerklösungen GmbH
A5: Bestandsveränderungen / noch nicht abrechenbare Leistungen
A6: für die ersten drei Geschäftsjahre
D8: Jahr 1 | E8: Jahr 2 | F8: Jahr 3
B9: Posten | C9: Anmerkung | D9: ='Plan G+V'!D9 -> 2017 | E9: ='Plan G+V'!F9 -> 2018 | F9: ='Plan G+V'!H9 -> 2019
A10: Bestandsveränderungen/nna Leistungen | C10: Hier Namen des Produktes oder der Dienstleistung eingeben
B11: Stand 1.1 Produkt/Leistung 1 | C11: Netzwerkarchitektur | D11: 0 | E11: =D12 -> 3000 | F11: =E12 -> 10000
B12: - Stand 31.12 Produkt/Leistung 1 | D12: 3000 | E12: 10000 | F12: 0
B13: Veränderung Produkt/Leistung 1 | D13: =D12-D11 -> 3000 | E13: =E12-E11 -> 7000 | F13: =F12-F11 -> -10000
B14: Stand 1.1 Produkt/Leistung 2 | E14: =D15 -> 0 | F14: =E15 -> 0
B15: - Stand 31.12 Produkt/Leistung 2
B16: Veränderung Produkt/Leistung 2 | D16: =D15-D14 -> 0 | E16: =E15-E14 -> 0 | F16: =F15-F14 -> 0
B17: Stand 1.1 Produkt/Leistung 3 | E17: =D18 -> 0 | F17: =E18 -> 0
B18: - Stand 31.12 Produkt/Leistung 3
B19: Veränderung Produkt/Leistung 3 | D19: =D18-D17 -> 0 | E19: =E18-E17 -> 0 | F19: =F18-F17 -> 0
B20: Stand 1.1 Produkt/Leistung 4 | E20: =D21 -> 0 | F20: =E21 -> 0
B21: - Stand 31.12 Produkt/Leistung 4
B22: Veränderung Produkt/Leistung 4 | D22: =D21-D20 -> 0 | E22: =E21-E20 -> 0 | F22: =F21-F20 -> 0
B23: Stand 1.1 Produkt/Leistung 5 | E23: =D24 -> 0 | F23: =E24 -> 0
B24: - Stand 31.12 Produkt/Leistung 5
B25: Veränderung Produkt/Leistung 5 | D25: =D24-D23 -> 0 | E25: =E24-E23 -> 0 | F25: =F24-F23 -> 0
A26: Summe Bestandsveränderungen / nna Leistungen | D26: =D13+D16+D19+D22+D25 -> 3000 | E26: =E13+E16+E19+E22+E25 -> 7000 | F26: =F13+F16+F19+F22+F25 -> -10000
A27: Summe halbfertige und fertige Erzeugnisse / nna Leistungen | D27: =+D12+D15+D18+D21+D24 -> 3000 | E27: =+E12+E15+E18+E21+E24 -> 10000 | F27: =+F12+F15+F18+F21+F24 -> 0
A30: Erläuterungen zu Bestandsveränderungen:
A31: Für Produzenten: Bitte geben Sie hier die geplanten Bestände (Wert) Ihrer halbfertigen und fertigen Produkte ein!
A32: Für Dienstleister: Bitte geben Sie hier den Wert bereits durchgeführter Dienstleistungen ein, die Sie am 31.12. noch
A33: nicht abgerechnet haben!

Sheet Blatt 3 AktE
C1: =+Übersichtsblatt!C10 -> Bestandsveränderungen | E1: Übersicht | G1: =+Übersichtsblatt!C14 -> Waren- und Materialeinsatz
C3: ='Plan G+V'!C3 -> BigNet Netzwerklösungen GmbH
A5: aktivierte Eigenleistungen
A6: für die ersten drei Geschäftsjahre
E8: Jahr 1 | F8: Jahr 2 | G8: Jahr 3
B9: Posten | C9: Anmerkung | D9: Nutzungsdauer | E9: ='Plan G+V'!D9 -> 2017 | F9: ='Plan G+V'!F9 -> 2018 | G9: ='Plan G+V'!H9 -> 2019
B10: Bezeichnung | C10: Hier eintragen, um welche Eigenleistung es sich handelt | D10: Geben Sie hier die erwartete Nutzungsdauer ein
A11: 1 | B11: GOD I | C11: Netzwerkrechner | D11: 5 | E11: 2500
A12: 2 | B12: Abschreibung | E12: =IF(D11="",0,E11/D11) -> 500 | F12: =IF(D11="",0,IF(D11<2,F11/D11,(E11+F11)/D11)) -> 500 | G12: =IF(D11="",0,IF(D11<2,G11/D11,IF(D11<3,(F11+G11)/D11,(E11+F11+G11)/D11))) -> 500
A13: 3 | B13: GOD II | C13: Netzwerkrechner | D13: 5 | E13: 0 | F13: 2350
A14: 4 | B14: Abschreibung | E14: =IF(D13="",0,E13/D13) -> 0 | F14: =IF(D13="",0,IF(D13<2,F13/D13,(E13+F13)/D13)) -> 470 | G14: =IF(D13="",0,IF(D13<2,G13/D13,IF(D13<3,(F13+G13)/D13,(E13+F13+G13)/D13))) -> 470
A15: 5 | B15: GOD III | C15: Netzwerkrechner | D15: 5 | E15: 0 | F15: 0 | G15: 2250
A16: 6 | B16: Abschreibung | E16: =IF(D15="",0,E15/D15) -> 0 | F16: =IF(D15="",0,IF(D15<2,F15/D15,(E15+F15)/D15)) -> 0 | G16: =IF(D15="",0,IF(D15<2,G15/D15,IF(D15<3,(F15+G15)/D15,(E15+F15+G15)/D15))) -> 450
A17: 7
A18: 8 | B18: Abschreibung | E18: =IF(D17="",0,E17/D17) -> 0 | F18: =IF(D17="",0,IF(D17<2,F17/D17,(E17+F17)/D17)) -> 0 | G18: =IF(D17="",0,IF(D17<2,G17/D17,IF(D17<3,(F17+G17)/D17,(E17+F17+G17)/D17))) -> 0
A19: 9
A20: 10 | B20: Abschreibung | E20: =IF(D19="",0,E19/D19) -> 0 | F20: =IF(D19="",0,IF(D19<2,F19/D19,(E19+F19)/D19)) -> 0 | G20: =IF(D19="",0,IF(D19<2,G19/D19,IF(D19<3,(F19+G19)/D19,(E19+F19+G19)/D19))) -> 0
A21: 11
A22: 12 | B22: Abschreibung | E22: =IF(D21="",0,E21/D21) -> 0 | F22: =IF(D21="",0,IF(D21<2,F21/D21,(E21+F21)/D21)) -> 0 | G22: =IF(D21="",0,IF(D21<2,G21/D21,IF(D21<3,(F21+G21)/D21,(E21+F21+G21)/D21))) -> 0
A23: 13
A24: 14 | B24: Abschreibung | E24: =IF(D23="",0,E23/D23) -> 0 | F24: =IF(D23="",0,IF(D23<2,F23/D23,(E23+F23)/D23)) -> 0 | G24: =IF(D23="",0,IF(D23<2,G23/D23,IF(D23<3,(F23+G23)/D23,(E23+F23+G23)/D23))) -> 0
A25: 15
A26: 16 | B26: Abschreibung | E26: =IF(D25="",0,E25/D25) -> 0 | F26: =IF(D25="",0,IF(D25<2,F25/D25,(E25+F25)/D25)) -> 0 | G26: =IF(D25="",0,IF(D25<2,G25/D25,IF(D25<3,(F25+G25)/D25,(E25+F25+G25)/D25))) -> 0
A27: Summe Eigenleistungen | E27: =E11+E13+E15+E17+E19+E21+E23+E25 -> 2500 | F27: 2350 | G27: 2250
A28: Summe Abschreibungen | E28: 500 | F28: 970 | G28: 1420
A29: Akt. Eigenleistungen 31.12. | E29: =E27-E28 -> 2000 | F29: =F27-F28+E29 -> 3380 | G29: =G27-G28+F29 -> 4210
A31: Erläuterungen zu aktivierte Eigenleistungen:
A32: Bitte hier alle selbst erstellten Anlagegüter (Ausnahme: selbst erstellte immaterielle Anlagegüter wie zB Software) eingeben!

Sheet Blatt 4 WES
B1: =+Übersichtsblatt!C12 -> Aktivierte Eigenleistungen | D1: Übersicht | F1: =+Übersichtsblatt!C16 -> Personalplanung
C3: ='Plan G+V'!C3 -> BigNet Netzwerklösungen GmbH
A5: Wareneinsatz und Materialeinkauf
A6: für die ersten drei Geschäftsjahre
D8: Jahr 1 | E8: Jahr 2 | F8: Jahr 3
B9: Posten | C9: Anmerkung | D9: ='Plan G+V'!D9 -> 2017 | E9: ='Plan G+V'!F9 -> 2018 | F9: ='Plan G+V'!H9 -> 2019
A10: Material (Roh-,Hilfs- u. Betriebsst.)
A11: 1 | B11: Materialbestand 1.1. | E11: =D13 -> 0 | F11: =E13 -> 0
A12: 2 | B12: Zukäufe
A13: 3 | B13: Materialbestand 31.12.
A14: 4 | B14: Materialeinsatz | D14: =D11+D12-D13 -> 0 | E14: =E11+E12-E13 -> 0 | F14: =F11+F12-F13 -> 0
A15: (Handels)Waren
A16: 5 | B16: Warenbestand 1.1. | D16: 0 | E16: =D18 -> 300 | F16: =E18 -> 300
A17: 6 | B17: Zukäufe | D17: 400 | E17: 100 | F17: 100
A18: 7 | B18: Warenbestand 31.12. | D18: 300 | E18: 300 | F18: 300
A19: 8 | B19: Wareneinsatz | D19: =D16+D17-D18 -> 100 | E19: =E16+E17-E18 -> 100 | F19: =F16+F17-F18 -> 100
A20: Waren- und Materialbestand 31.12. | D20: =D13+D18 -> 300 | E20: 300 | F20: 300
A21: Waren- und Materialeinsatz | D21: 100 | E21: 100 | F21: 100
A22: Waren- und Materialeinkauf | D22: =+D12+D17 -> 400 | E22: =+E12+E17 -> 100 | F22: =+F12+F17 -> 100
A27: Erläuterungen: Tragen Sie hier den Wert aller Waren und Materialien zum 1.1. und 31.12. eines Planjahres
A28: sowie die Zukäufe ein. Dazu gehören auch Bezugskosten. Darunter sind Aufwendungen zu verstehen,
A29: die gegenüber Dritten entstehen, um in den Besitz der Waren bzw. der Dienstleistungen zu kommen.
A30: (Bsp: Frachtkosten).

Sheet Blatt 5 Pers
B1: =+Übersichtsblatt!C14 -> Waren- und Materialeinsatz | E1: Übersicht | H1: =+Übersichtsblatt!C18 -> Sonstiger Aufwand
C2: ='Plan G+V'!C3 -> BigNet Netzwerklösungen GmbH
A4: Personalaufwand
A5: für die ersten drei Geschäftsjahre
D7: Jahr 1 | E7: Jahr 2 | F7: Jahr 3
B8: Posten | C8: Anmerkungen | D8: ='Plan G+V'!D9 -> 2017 | E8: ='Plan G+V'!F9 -> 2018 | F8: ='Plan G+V'!H9 -> 2019 | H8: =D8 -> 2017 | Q8: =E8 -> 2018 | Z8: =F8 -> 2019
B9: Bezeichnung (zB Geschäftsführer,...) | D9: DG-Gesamtkosten | E9: DG-Gesamtkosten | F9: DG-Gesamtkosten | H9: Bruttolohn pM | I9: Monate | J9: HBmGl. | K9: =Allg.Angaben!C14 -> DB zur SV% | L9: =+Allg.Angaben!D14 -> DB% (FLAF) | M9: =+Allg.Angaben!E14 -> DZ%* | N9: =+Allg.Angaben!F14 -> KommSt% | O9: =+Allg.Angaben!G14 -> BV-Kasse% | P9: =+Allg.Angaben!H14 -> DB (U-Bahn)** | Q9: Bruttolohn pM | R9: Monate | S9: HBmGl. | T9: DG-Beitrag% | U9: DB% | V9: DZ% | W9: KSt% | X9: Abf.% | Y9: =+Allg.Angaben!H14 -> DB (U-Bahn)** | Z9: Bruttolohn pM | AA9: Monate | AB9: HBmGl. | AC9: DG-Beitrag% | AD9: DB% | AE9: DZ% | AF9: KSt% | AG9: Abf.% | AH9: =+Allg.Angaben!H14 -> DB (U-Bahn)**
A10: 1 | B10: GF 1 | C10: ab Jänner 2017 | D10: =(IF($H10>J10,P10+J10*14*K10+$H10*14*SUM(L10:O10),P10+$H10*14*SUM(K10:O10))+$H10*14)/12*I10 -> 73080 | E10: =(IF($Q10>S10,Y10+S10*14*T10+$Q10*14*SUM(U10:X10),Y10+$Q10*14*SUM(T10:X10))+$Q10*14)/12*R10 -> 80388 | F10: =(IF($Z10>AB10,AH10+AB10*14*AC10+$Z10*14*SUM(AD10:AG10),AH10+$Z10*14*SUM(AC10:AG10))+$Z10*14)/12*AA10 -> 88426.8 | G10: 1 | H10: 4000 | I10: 12 | J10: =+Allg.Angaben!B15 -> 4980 | K10: =+Allg.Angaben!C15 -> 0.2148 | L10: =+Allg.Angaben!D15 -> 0.041 | M10: =+Allg.Angaben!E15 -> 0.0039 | N10: =+Allg.Angaben!F15 -> 0.03 | O10: =+Allg.Angaben!G15 -> 0.0153 | P10: =+Allg.Angaben!H15 -> 0 | Q10: =+H10*1.1 -> 4400 | R10: 12 | S10: =+Allg.Angaben!B16 -> 5129.4 | T10: =+Allg.Angaben!C16 -> 0.2148 | U10: =+Allg.Angaben!D16 -> 0.041 | V10: =+Allg.Angaben!E16 -> 0.0039 | W10: =+Allg.Angaben!F16 -> 0.03 | X10: =+Allg.Angaben!G16 -> 0.0153 | Y10: =+Allg.Angaben!H16 -> 0 | Z10: =+Q10*1.1 -> 4840 | AA10: 12 | AB10: =Allg.Angaben!B17 -> 5283.282 | AC10: =Allg.Angaben!C17 -> 0.2148 | AD10: =Allg.Angaben!D17 -> 0.041 | AE10: =Allg.Angaben!E17 -> 0.0039 | AF10: =Allg.Angaben!F17 -> 0.03 | AG10: =Allg.Angaben!G17 -> 0.0153 | AH10: =+Allg.Angaben!$H$17 -> 0
A11: 2 | B11: GF 2 | C11: ab Jänner 2017 | D11: 73080 | E11: 80388 | F11: =(IF($Z11>AB11,AH11+AB11*14*AC11+$Z11*14*SUM(AD11:AG11),AH11+$Z11*14*SUM(AC11:AG11))+$Z11*14)/12*AA11 -> 88426.8 | G11: 1 | H11: 4000 | I11: 12 | J11: =+J10 -> 4980 | K11: 0.2148 | L11: 0.041 | M11: 0.0039 | N11: 0.03 | O11: 0.0153 | P11: 0 | Q11: =+H11*1.1 -> 4400 | R11: 12 | S11: =+S10 -> 5129.4 | T11: =+T10 -> 0.2148 | U11: 0.041 | V11: 0.0039 | W11: 0.03 | X11: 0.0153 | Y11: 0 | Z11: =+Q11*1.1 -> 4840 | AA11: 12 | AB11: =AB10 -> 5283.282 | AC11: =AC10 -> 0.2148 | AD11: =AD10 -> 0.041 | AE11: =AE10 -> 0.0039 | AF11: =AF10 -> 0.03 | AG11: 0.0153 | AH11: =+Allg.Angaben!$H$17 -> 0
A12: 3 | B12: Assistenz 1 | C12: ab Jänner 2017 | D12: 27405 | E12: 28227.15 | F12: 29073.9645 | G12: 1 | H12: 1500 | I12: 12 | J12: =+J11 -> 4980 | K12: =+K11 -> 0.2148 | L12: =+L11 -> 0.041 | M12: =+M11 -> 0.0039 | N12: =+N11 -> 0.03 | O12: =+O11 -> 0.0153 | P12: =+P11 -> 0 | Q12: =+H12*1.03 -> 1545 | R12: 12 | S12: =+S11 -> 5129.4 | T12: =+T11 -> 0.2148 | U12: =+U11 -> 0.041 | V12: =+V11 -> 0.0039 | W12: =+W11 -> 0.03 | X12: =+X11 -> 0.0153 | Y12: =+Y11 -> 0 | Z12: =+Q12*1.03 -> 1591.35 | AA12: 12 | AB12: =AB11 -> 5283.282 | AC12: =AC11 -> 0.2148 | AD12: 0.041 | AE12: 0.0039 | AF12: 0.03 | AG12: 0.0153 | AH12: =+Allg.Angaben!$H$17 -> 0
A13: 4 | B13: Assistenz 2 | C13: ab November 2017 | D13: 4567.5 | E13: 28227.15 | F13: 29073.9645 | G13: 1 | H13: 1500 | I13: 2 | J13: 4980 | K13: 0.2148 | L13: 0.041 | M13: 0.0039 | N13: 0.03 | O13: 0.0153 | P13: 0 | Q13: =+H13*1.03 -> 1545 | R13: 12 | S13: 5129.4 | T13: 0.2148 | U13: 0.041 | V13: 0.0039 | W13: 0.03 | X13: 0.0153 | Y13: 0 | Z13: =+Q13*1.03 -> 1591.35 | AA13: 12 | AB13: 5283.282 | AC13: 0.2148 | AD13: 0.041 | AE13: 0.0039 | AF13: 0.03 | AG13: 0.0153 | AH13: =+Allg.Angaben!$H$17 -> 0
A14: 5 | B14: Techniker 1 | C14: ab März 2017 | D14: 38062.5 | E14: 47958.75 | F14: 50356.6875 | G14: 1 | H14: 2500 | I14: 10 | J14: 4980 | K14: 0.2148 | L14: 0.041 | M14: 0.0039 | N14: 0.03 | O14: 0.0153 | P14: 0 | Q14: =+H14*1.05 -> 2625 | R14: 12 | S14: 5129.4 | T14: 0.2148 | U14: 0.041 | V14: 0.0039 | W14: 0.03 | X14: 0.0153 | Y14: 0 | Z14: =+Q14*1.05 -> 2756.25 | AA14: 12 | AB14: 5283.282 | AC14: 0.2148 | AD14: 0.041 | AE14: 0.0039 | AF14: 0.03 | AG14: 0.0153 | AH14: =+Allg.Angaben!$H$17 -> 0
A15: 6 | B15: Techniker 2 | C15: ab September 2017 | D15: 15225 | E15: 47958.75 | F15: 50356.6875 | G15: 1 | H15: 2500 | I15: 4 | J15: 4980 | K15: 0.2148 | L15: 0.041 | M15: 0.0039 | N15: 0.03 | O15: 0.0153 | P15: 0 | Q15: =+H15*1.05 -> 2625 | R15: 12 | S15: 5129.4 | T15: 0.2148 | U15: 0.041 | V15: 0.0039 | W15: 0.03 | X15: 0.0153 | Y15: 0 | Z15: =+Q15*1.05 -> 2756.25 | AA15: 12 | AB15: 5283.282 | AC15: 0.2148 | AD15: 0.041 | AE15: 0.0039 | AF15: 0.03 | AG15: 0.0153 | AH15: =+Allg.Angaben!$H$17 -> 0
A16: 7 | B16: Techniker 3 | C16: ab Jänner 2018 | D16: 0 | E16: 45675 | F16: 47958.75 | G16: 1 | J16: 4980 | K16: 0.2148 | L16: 0.041 | M16: 0.0039 | N16: 0.03 | O16: 0.0153 | P16: 0 | Q16: 2500 | R16: 12 | S16: 5129.4 | T16: 0.2148 | U16: 0.041 | V16: 0.0039 | W16: 0.03 | X16: 0.0153 | Y16: 0 | Z16: =+Q16*1.05 -> 2625 | AA16: 12 | AB16: 5283.282 | AC16: 0.2148 | AD16: 0.041 | AE16: 0.0039 | AF16: 0.03 | AG16: 0.0153 | AH16: =+Allg.Angaben!$H$17 -> 0
A17: 8 | B17: Techniker 4 | C17: ab September 2018 | D17: 0 | E17: 15225 | F17: 47958.75 | G17: 1 | J17: 4980 | K17: 0.2148 | L17: 0.041 | M17: 0.0039 | N17: 0.03 | O17: 0.0153 | P17: 0 | Q17: 2500 | R17: 4 | S17: 5129.4 | T17: 0.2148 | U17: 0.041 | V17: 0.0039 | W17: 0.03 | X17: 0.0153 | Y17: 0 | Z17: =+Q17*1.05 -> 2625 | AA17: 12 | AB17: 5283.282 | AC17: 0.2148 | AD17: 0.041 | AE17: 0.0039 | AF17: 0.03 | AG17: 0.0153 | AH17: =+Allg.Angaben!$H$17 -> 0
A18: 9 | D18: 0 | E18: 0 | F18: 0 | G18: 1 | J18: 4980 | K18: 0.2148 | L18: 0.041 | M18: 0.0039 | N18: 0.03 | O18: 0.0153 | P18: 0 | S18: 5129.4 | T18: 0.2148 | U18: 0.041 | V18: 0.0039 | W18: 0.03 | X18: 0.0153 | Y18: 0 | AB18: 5283.282 | AC18: 0.2148 | AD18: 0.041 | AE18: 0.0039 | AF18: 0.03 | AG18: 0.0153 | AH18: =+Allg.Angaben!$H$17 -> 0
A19: 10 | D19: 0 | E19: 0 | F19: 0 | G19: 1 | J19: 4980 | K19: 0.2148 | L19: 0.041 | M19: 0.0039 | N19: 0.03 | O19: 0.0153 | P19: 0 | S19: 5129.4 | T19: 0.2148 | U19: 0.041 | V19: 0.0039 | W19: 0.03 | X19: 0.0153 | Y19: 0 | AB19: 5283.282 | AC19: 0.2148 | AD19: 0.041 | AE19: 0.0039 | AF19: 0.03 | AG19: 0.0153 | AH19: =+Allg.Angaben!$H$17 -> 0
A20: 11 | D20: 0 | E20: 0 | F20: 0 | G20: 1 | J20: 4980 | K20: 0.2148 | L20: 0.041 | M20: 0.0039 | N20: 0.03 | O20: 0.0153 | P20: 0 | S20: 5129.4 | T20: 0.2148 | U20: 0.041 | V20: 0.0039 | W20: 0.03 | X20: 0.0153 | Y20: 0 | AB20: 5283.282 | AC20: 0.2148 | AD20: 0.041 | AE20: 0.0039 | AF20: 0.03 | AG20: 0.0153 | AH20: =+Allg.Angaben!$H$17 -> 0
A21: 12 | D21: 0 | E21: 0 | F21: 0 | G21: 1 | J21: 4980 | K21: 0.2148 | L21: 0.041 | M21: 0.0039 | N21: 0.03 | O21: 0.0153 | P21: 0 | S21: 5129.4 | T21: 0.2148 | U21: 0.041 | V21: 0.0039 | W21: 0.03 | X21: 0.0153 | Y21: 0 | AB21: 5283.282 | AC21: 0.2148 | AD21: 0.041 | AE21: 0.0039 | AF21: 0.03 | AG21: 0.0153 | AH21: =+Allg.Angaben!$H$17 -> 0
A22: 13 | D22: 0 | E22: 0 | F22: 0 | G22: 1 | J22: 4980 | K22: 0.2148 | L22: 0.041 | M22: 0.0039 | N22: 0.03 | O22: 0.0153 | P22: 0 | S22: 5129.4 | T22: 0.2148 | U22: 0.041 | V22: 0.0039 | W22: 0.03 | X22: 0.0153 | Y22: 0 | AB22: 5283.282 | AC22: 0.2148 | AD22: 0.041 | AE22: 0.0039 | AF22: 0.03 | AG22: 0.0153 | AH22: =+Allg.Angaben!$H$17 -> 0
A23: 14 | D23: 0 | E23: 0 | F23: 0 | G23: 1 | J23: 4980 | K23: 0.2148 | L23: 0.041 | M23: 0.0039 | N23: 0.03 | O23: 0.0153 | P23: 0 | S23: 5129.4 | T23: 0.2148 | U23: 0.041 | V23: 0.0039 | W23: 0.03 | X23: 0.0153 | Y23: 0 | AB23: 5283.282 | AC23: 0.2148 | AD23: 0.041 | AE23: 0.0039 | AF23: 0.03 | AG23: 0.0153 | AH23: =+Allg.Angaben!$H$17 -> 0
A24: 15 | D24: 0 | E24: 0 | F24: 0 | G24: 1 | J24: 4980 | K24: 0.2148 | L24: 0.041 | M24: 0.0039 | N24: 0.03 | O24: 0.0153 | P24: 0 | S24: 5129.4 | T24: 0.2148 | U24: 0.041 | V24: 0.0039 | W24: 0.03 | X24: 0.0153 | Y24: 0 | AB24: =AB23 -> 5283.282 | AC24: =AC23 -> 0.2148 | AD24: =AD23 -> 0.041 | AE24: =AE23 -> 0.0039 | AF24: =AF23 -> 0.03 | AG24: 0.0153 | AH24: =+Allg.Angaben!$H$17 -> 0
A25: 16 | B25: Bonuszahlungen | C25: Geben Sie hier die Summe aller Bonuszahlungen ein, die Sie planen | G25: 1
A26: Summe Personalaufwand | D26: =SUM(D10:D25) -> 231420 | E26: =SUM(E10:E25) -> 374047.8 | F26: =SUM(F10:F25) -> 431632.404

Sheet Blatt 6 S. Aufw
B1: =+Übersichtsblatt!C16 -> Personalplanung | E1: Übersicht | I1: =+Übersichtsblatt!C20 -> Steuerberechnung
A2: ='Plan G+V'!C3 -> BigNet Netzwerklösungen GmbH
A3: sonstige Aufwendungen
D5: Jahr 1 | E5: Jahr 2 | F5: Jahr 3 | G5: Jahr 1 | H5: Jahr 2 | I5: Jahr 3 | J5: Jahr 4 | K5: Kontroll-
B6: Posten | C6: Anmerkung | D6: ='Plan G+V'!D9 -> 2017 | E6: ='Plan G+V'!F9 -> 2018 | F6: ='Plan G+V'!H9 -> 2019 | G6: =D6 -> 2017 | H6: =E6 -> 2018 | I6: =F6 -> 2019 | J6: =IFERROR(I6+1,"") -> 2020 | K6: Summe OK?
B7: sonstige Aufwendungen | G7: zahlungswirksam | H7: zahlungswirksam | I7: zahlungswirksam | J7: zahlungswirksam
B8: Versicherungen | C8: zahlbar Jahresbeginn | D8: 2000 | E8: 2100 | F8: 2205 | G8: 2000 | H8: 2100 | I8: 2205 | J8: 0 | K8: =IF(SUM(D8:F8)=SUM(G8:J8),"OK","prüfen") -> OK
B9: Mietaufwand, Pacht, Leasing | C9: zahlbar Monatsbeginn | D9: 9600 | E9: 9600 | F9: 9600 | G9: 9600 | H9: 9600 | I9: 9600 | J9: 0 | K9: =IF(SUM(D9:F9)=SUM(G9:J9),"OK","prüfen") -> OK
B10: Marketing/Werbung | D10: 4000 | E10: 6000 | F10: 9000 | G10: 3600 | H10: 5800 | I10: 8700 | J10: 900 | K10: OK
B11: Instandhaltung | D11: 4000 | E11: 6000 | F11: 9000 | G11: 3600 | H11: 5800 | I11: 8700 | J11: 900 | K11: OK
B12: KFZ-Aufwand | D12: 4000 | E12: 6000 | F12: 9000 | G12: 3600 | H12: 5800 | I12: 8700 | J12: 900 | K12: OK
B13: Telekommunikationsaufwand | C13: zahlbar am 5. des Folgemonats | D13: 2400 | E13: 2640 | F13: 2904 | G13: 2200 | H13: 2620 | I13: 2882 | J13: 242 | K13: OK
B14: Porto | K14: OK
B15: Buchhaltung/Beratung | C15: EUR 4.000 Folgejahr | D15: 10000 | E15: 10000 | F15: 10000 | G15: 6000 | H15: 10000 | I15: 10000 | J15: 4000 | K15: OK
B16: Reisekosten | C16: zahlbar im Folgemonat | D16: 1900 | E16: 3200 | F16: 3600 | G16: =D16/12*11 -> 1741.666667 | H16: =+D16/12*1+E16/12*11 -> 3091.666667 | I16: =+F16/12*11+E16/12*1 -> 3566.666667 | J16: 300 | K16: OK
B17: Steuern (sonstige) | K17: OK
B18: Abgaben/Gebühren | K18: OK
B19: Fremdleistungen | K19: OK
B20: sonstiger Aufwand: | K20: OK
K21: OK
K22: OK
K23: OK
A24: Summe sonstige Aufwendungen | D24: =SUM(D8:D23) -> 37900 | E24: 45540 | F24: 55309 | G24: 32341.66667 | H24: 44811.66667 | I24: 54353.66667 | J24: 7242 | K24: =IF(SUM(D24:F24)=SUM(G24:J24),"OK","prüfen") -> OK
D25: Hilfs-Rechengrößen für Blatt "Allg.Angaben - Zeile 48" | G25: =IFERROR(G24/D24,0) -> 0.8533421284 | H25: =IFERROR(H24/E24,0) -> 0.984006734 | I25: =IFERROR(I24/F24,0) -> 0.982727344

Sheet Blatt 7 Steuern
B1: =+Übersichtsblatt!C18 -> Sonstiger Aufwand | D1: Übersicht | F1: =+Übersichtsblatt!B22 -> Investitionsplanung
A2: ='Plan G+V'!C3 -> BigNet Netzwerklösungen GmbH
A3: Steuerberechnungen
D6: Jahr 1 | E6: Jahr 2 | F6: Jahr 3
B7: Posten | C7: Anmerkung | D7: ='Plan G+V'!D9 -> 2017 | E7: ='Plan G+V'!F9 -> 2018 | F7: ='Plan G+V'!H9 -> 2019
A8: 1 | B8: Ergebnis vor Steuern | D8: ='Plan G+V'!D25 -> -131009.3263 | E8: ='Plan G+V'!F25 -> 57310.48442 | F8: ='Plan G+V'!H25 -> 316306.4967
A9: 2 | B9: +/- Steuerliche Mehrwenigerrechnung
A10: 3 | B10: - Absetzbeträge
A11: 4 | B11: Zwischensumme | D11: =SUM(D8:D10) -> -131009.3263 | E11: =SUM(E8:E10) -> 57310.48442 | F11: =SUM(F8:F10) -> 316306.4967
A12: 5 | B12: Stand Verlustvortrag | E12: =-MIN(D14,0) -> 131009.3263 | F12: =-MIN(E14,0)+E12+E13 -> 88026.46299 | G12: =-MIN(F14,0)+F12+F13 -> 0 | J12: Verlustvortragsgrenze
B13: -Verlustvortrag verrechenbar | D13: =-IF(AND(D11>0,D12>0),MIN(D12,D11*(1-I13)),0) -> 0 | E13: =-IF(AND(E11>0,E12>0),MIN(E12,E11*(J13)),0) -> -42982.86331 | F13: =-IF(AND(F11>0,F12>0),MIN(F12,F11*(K13)),0) -> -88026.46299 | I13: =IF(Stammdaten!D6="GmbH",Allg.Angaben!D8,IF(Stammdaten!D6="AG",Allg.Angaben!D8,Allg.Angaben!D9)) -> 0.75 | J13: =IF(Stammdaten!D6="GmbH",Allg.Angaben!E8,IF(Stammdaten!D6="AG",Allg.Angaben!E8,Allg.Angaben!E9)) -> 0.75 | K13: =IF(Stammdaten!D6="GmbH",Allg.Angaben!F8,IF(Stammdaten!D6="AG",Allg.Angaben!F8,Allg.Angaben!F9)) -> 0.75
A14: 6 | B14: Steuerpflichtiger Gewinn | D14: =D11+D13 -> -131009.3263 | E14: =E11+E13 -> 14327.6211 | F14: =F11+F13 -> 228280.0337
A15: 7 | B15: Körperschaftssteuer vorläufig | D15: =-IF(Stammdaten!$D$6="AG",MAX(D14*Allg.Angaben!$D$6,3500),IF(Stammdaten!$D$6="GmbH",MAX(D14*Allg.Angaben!$D$6,$M$19),0)) -> -500 | E15: =-IF(Stammdaten!$D$6="AG",MAX(E14*Allg.Angaben!$D$6,3500),IF(Stammdaten!$D$6="GmbH",MAX(E14*Allg.Angaben!$D$6,$M$19),0)) -> -3581.905276 | F15: =-IF(Stammdaten!$D$6="AG",MAX(F14*Allg.Angaben!$D$6,3500),IF(Stammdaten!$D$6="GmbH",MAX(F14*Allg.Angaben!$D$6,$M$19),0)) -> -57070.00843 | L15: =IF(Stammdaten!$D$6="GmbH",IF(AND('Blatt 7 Steuern'!E15<-500,N18<5),MIN(-'Blatt 7 Steuern'!E15-500,E16),0),IF(Stammdaten!$D$6="GmbH",IF(AND('Blatt 7 Steuern'!E15<-1000,N18>5,N18<10),MIN(-'Blatt 7 Steuern'!E15-1000,E16),0),IF(Stammdaten!$D$6="GmbH",IF(AND('Blatt 7 Steuern'!E15<-1750,N18>10),MIN(-'Blatt 7 Steuern'!E15-1750,E16),0),IF(Stammdaten!$D$6="AG",IF('Blatt 7 Steuern'!E15<-3500,MIN(-'Blatt 7 Steuern'!E15-3500,E16),0),0)))) -> 500
A16: 8 | B16: Verrechenbare MindestKSt 1.1. | E16: =D19 -> 500 | F16: =E19 -> 0 | P16: =IF(Stammdaten!$D$6="GmbH";IF('Blatt 7 Steuern'!E15<-1750;MIN(-'Blatt 7 Steuern'!E15-1750;E16);0);IF(Stammdaten!$D$6="AG";IF('Blatt 7 Steuern'!E15<-3500;MIN(-'Blatt 7 Steuern'!E15-3500;E16);0);0))
A17: 9 | B17: Verbrauch MindestKSt | E17: =IF(Stammdaten!$D$6="GmbH",IF('Blatt 7 Steuern'!E15<-500,MIN(-'Blatt 7 Steuern'!E15-500,E16),0),IF(Stammdaten!$D$6="AG",IF('Blatt 7 Steuern'!E15<-3500,MIN(-'Blatt 7 Steuern'!E15-3500,E16),0),0)) -> 500 | F17: =IF(Stammdaten!$D$6="GmbH",IF('Blatt 7 Steuern'!F15<-500,MIN(-'Blatt 7 Steuern'!F15-500,F16),0),IF(Stammdaten!$D$6="AG",IF('Blatt 7 Steuern'!F15<-3500,MIN(-'Blatt 7 Steuern'!F15-3500,F16),0),0)) -> 0 | L17: Nebenrechnung Höhe MiKö (alter Gesellschaft)
A18: 10 | B18: Körperschaftssteueraufwand | D18: =D15+D17 -> -500 | E18: =E15+E17 -> -3081.905276 | F18: =F15+F17 -> -57070.00843 | I18: Verrechenbare MindestKSt 31.12. Nebenrechnung | M18: =YEAR(TODAY()) -> 2018 | N18: =$M$18-D7 -> 1
A19: 11 | B19: Verrechenbare MindestKSt 31.12. | D19: =IF(Stammdaten!$D$6="GmbH",J20,IF(Stammdaten!$D$6="AG",J21,0)) -> 500 | E19: =IF(Stammdaten!D6="AG",IF('Blatt 7 Steuern'!E14*Allg.Angaben!$D$6<70000*0.05,70000*0.05-MAX(E14*Allg.Angaben!$D$6,0)),IF(Stammdaten!D6="GmbH",IF('Blatt 7 Steuern'!E14*Allg.Angaben!$D$6<500,500-MAX(E14*Allg.Angaben!$D$6,0)),0))+E16-E17 -> 0 | F19: =IF(Stammdaten!D6="AG",IF('Blatt 7 Steuern'!F14*0.25<70000*0.05,70000*0.05-MAX(F14*0.25,0)),IF(Stammdaten!D6="GmbH",IF('Blatt 7 Steuern'!F14*0.25<500,500-MAX(F14*0.25,0)),0))+F16-F17 -> 0 | L19: MiKö 0-5 Jahre | M19: 500 | N19: =IF($N$18<=5,M19,0) -> 500
A20: 12 | B20: Einkommensteuer | D20: =-IF(Stammdaten!$E$6=2,D45,0) -> 0 | E20: =-IF(Stammdaten!$E$6=2,E45,0) -> 0 | F20: =-IF(Stammdaten!$E$6=2,F45,0) -> 0 | I20: GmbH | J20: =IF(Stammdaten!$D$6="GmbH",IF(D14*Allg.Angaben!$D$6<500,-MAX(D14*Allg.Angaben!$D$6,0)-D15,0)) -> 500 | L20: MiKö 5-10 Jahre | M20: 1000 | N20: =IF(AND($N$18<=10,$N$18>5),M20,0) -> 0
A21: Absetzbeträge wurden zur Vereinfachung der Berechnung vernachlässigt. | I21: AG | J21: =IF(Stammdaten!$D$6="AG",IF(D14*Allg.Angaben!$D$6<3500,-MAX(D14*Allg.Angaben!$D$6,0)-D15,0)) -> FALSE | L21: MiKö > 10 Jahre | M21: 1750 | N21: =IF(AND($N$18>10),M21,0) -> 0
A22: Steuerberechnungen nach Tarif | C22: nur bei Einkommensteuerpflicht! | L22: Nebenrechnung | M22: MAX | N22: =MAX(N19:N21) -> 500
A23: 13 | B23: Steuerpflichtiger Gewinn | D23: =IF(Stammdaten!$E$6=2,MAX(D$14,0),0) -> 0 | E23: =IF(Stammdaten!$E$6=2,MAX(E$14,0),0) -> 0 | F23: =IF(Stammdaten!$E$6=2,MAX(F$14,0),0) -> 0
A24: 14 | B24: Tarifstufe I (bis) | C24: =I24 -> 11000 | D24: =IF(D$23<=$C24,D$23,0) -> 0 | E24: =IF(E$23<=$C24,E$23,0) -> 0 | F24: =IF(F$23<=$C24,F$23,0) -> 0 | G24: =IF(G$23<=$C24,G$23,0) -> 0 | I24: =Allg.Angaben!E24 -> 11000 | J24: =Allg.Angaben!F24 -> 0 | K24: =Allg.Angaben!G24 -> 0
A25: 15 | B25: Steuersatz | C25: =K24 -> 0 | D25: =D24*$C25 -> 0 | E25: =E24*$C25 -> 0 | F25: =F24*$C25 -> 0 | G25: =G24*$C25 -> 0 | I25: =Allg.Angaben!E25 -> 18000 | J25: =Allg.Angaben!F25 -> 1750 | K25: =Allg.Angaben!G25 -> 0.25 | L25: =+I25*K25 -> 4500 | M25: =+L25/I25 -> 0.25
A26: 16 | B26: Zwischensumme | I26: =Allg.Angaben!E26 -> 31000 | J26: =Allg.Angaben!F26 -> 4550 | K26: =Allg.Angaben!G26 -> 0.35 | L26: 10850 | M26: 0.35
A27: 17 | B27: Tarifstufe II (bis) | C27: =I25 -> 18000 | D27: =IF(AND(D$23<=$C27,D$23>$C$24),D$23,0) -> 0 | E27: =IF(AND(E$23<=$C27,E$23>$C$24),E$23,0) -> 0 | F27: =IF(AND(F$23<=$C27,F$23>$C$24),F$23,0) -> 0 | G27: =IF(AND(G$23<=$C27,G$23>$C$24),G$23,0) -> 0 | I27: =Allg.Angaben!E27 -> 60000 | J27: =Allg.Angaben!F27 -> 12180 | K27: =Allg.Angaben!G27 -> 0.42 | L27: 25200 | M27: 0.42
A28: 18 | B28: Steuersatz | C28: =K25 -> 0.25 | D28: =MAX((D27-$C$24)*$C$28,0) -> 0 | E28: =MAX((E27-$C$24)*$C$28,0) -> 0 | F28: =MAX((F27-$C$24)*$C$28,0) -> 0 | G28: =MAX((G27-$C$24)*$J$25/15000,0) -> 0 | I28: =Allg.Angaben!E28 -> 90000 | J28: =Allg.Angaben!F28 -> 14400 | K28: =Allg.Angaben!G28 -> 0.48 | L28: 43200 | M28: 0.48
A29: 19 | B29: Zwischensumme | I29: =Allg.Angaben!E29 -> 90000 | J29: =Allg.Angaben!F29 -> 0 | K29: =Allg.Angaben!G29 -> 0.5 | L29: 45000 | M29: 0.5
A30: 20 | B30: Tarifstufe III (bis) | C30: =I26 -> 31000 | D30: =IF(AND(D$23<=$C30,D$23>$C$27),D$23,0) -> 0 | E30: =IF(AND(E$23<=$C30,E$23>$C$27),E$23,0) -> 0 | F30: =IF(AND(F$23<=$C30,F$23>$C$27),F$23,0) -> 0 | G30: =IF(AND(G$23<=$C30,G$23>$C$27),G$23,0) -> 0 | I30: 1000000 | J30: =Allg.Angaben!F30 -> 455000 | K30: =+Allg.Angaben!G30 -> 0.55 | L30: 550000 | M30: 0.55
A31: 21 | B31: Steuersatz | C31: =K26 -> 0.35 | D31: =MAX(((D30-$C$27)*$L$26)/$I$26+$J$25,0) -> 0 | E31: =MAX(((E30-$C$27)*$L$26)/$I$26+$J$25,0) -> 0 | F31: =MAX(((F30-$C$27)*$L$26)/$I$26+$J$25,0) -> 0 | G31: =MAX(((G30-$C$27)*11335)/26000+$J$25,0) -> 0
A32: 22 | B32: Zwischensumme
A33: 23 | B33: Tarifstufe IV (bis) | C33: =I27 -> 60000 | D33: =IF(AND(D$23<=$C33,D$23>$C$30),D$23,0) -> 0 | E33: =IF(AND(E$23<=$C33,E$23>$C$30),E$23,0) -> 0 | F33: =IF(AND(F$23<=$C33,F$23>$C$30),F$23,0) -> 0 | G33: =IF(G$23>$C33,G$23,0) -> 0
A34: 24 | B34: Steuersatz | C34: =K27 -> 0.42 | D34: =MAX(((D33-$C$30)*$L$27)/$I$27+$J$26+$J$25,0) -> 0 | E34: =MAX(((E33-$C$30)*$L$27)/$I$27+$J$26+$J$25,0) -> 0 | F34: =MAX(((F33-$C$30)*$L$27)/$I$27+$J$26+$J$25,0) -> 0 | G34: =MAX((G33-$C33)/2+$J$26,0) -> 0
A35: 25 | B35: Zwischensumme
A36: 26 | B36: Tarifstufe V (bis) | C36: =I28 -> 90000 | D36: =IF(AND(D$23<=$C36,D$23>$C$33),D$23,0) -> 0 | E36: =IF(AND(E$23<=$C36,E$23>$C$33),E$23,0) -> 0 | F36: =IF(AND(F$23<=$C36,F$23>$C$33),F$23,0) -> 0
A37: 27 | B37: Steuersatz | C37: =+K28 -> 0.48 | D37: =MAX(((D36-$C$33)*$L$28)/$I$28+$J$27+$J$26+$J$25,0) -> 0 | E37: =MAX(((E36-$C$33)*$L$28)/$I$28+$J$27+$J$26+$J$25,0) -> 0 | F37: =MAX(((F36-$C$33)*$L$28)/$I$28+$J$27+$J$26+$J$25,0) -> 0
A38: 28 | B38: Zwischensumme
A39: 29 | B39: Tarifstufe VI (ab) | C39: =+I29 -> 90000 | D39: =IF(AND(D23>$C$39,D23<$C$42),D23,0) -> 0 | E39: =IF(AND(E23>$C$39,E23<$C$42),E23,0) -> 0 | F39: =IF(AND(F23>$C$39,F23<$C$42),F23,0) -> 0
A40: 30 | B40: Steuersatz | C40: =+K29 -> 0.5 | D40: =MAX(((D39-$C$36)*$L$29)/$I$29+$J$28+$J$27+$J$26+$J$25,0) -> 0 | E40: =MAX(((E39-$C$36)*$L$29)/$I$29+$J$28+$J$27+$J$26+$J$25,0) -> 0 | F40: =MAX(((F39-$C$36)*$L$29)/$I$29+$J$28+$J$27+$J$26+$J$25,0) -> 0
A41: 31 | B41: Zwischensumme
A42: 32 | B42: Tarifstufe VII (ab) | C42: =+I30 -> 1000000 | D42: =IF(D23>$C$42,D23,0) -> 0 | E42: =IF(E23>$C$42,E23,0) -> 0 | F42: =IF(F23>$C$42,F23,0) -> 0
A43: 33 | B43: Steuersatz | C43: =+K30 -> 0.55 | D43: =MAX((D42-$C$42)*$L$30/$I$30+$J$30+$J$28+$J$27+$J$26+$J$25,0) -> 0 | E43: =MAX((E42-$C$42)*$L$30/$I$30+$J$30+$J$28+$J$27+$J$26+$J$25,0) -> 0 | F43: =MAX((F42-$C$42)*$L$30/$I$30+$J$30+$J$28+$J$27+$J$26+$J$25,0) -> 0
A44: 34 | B44: Zwischensumme
B45: Steuerschuld gesamt | D45: =D25+D28+D31+D34+D37+D40+D43 -> 0 | E45: =E25+E28+E31+E34+E37+E40+E43 -> 0 | F45: =F25+F28+F31+F34+F37+F40+F43 -> 0

Sheet Investitionen
B1: =+Übersichtsblatt!C20 -> Steuerberechnung | D1: Übersicht | G1: =+Übersichtsblatt!B24 -> Planbilanz
C2: ='Plan G+V'!C3 -> BigNet Netzwerklösungen GmbH
A3: Investitionen und Abschreibungen 1/2
A4: für die ersten drei Geschäftsjahre
E6: Jahr 1 | F6: Jahr 2 | G6: Jahr 3
A7: Nr | B7: Posten | C7: Anmerkung | D7: Nutzungsdauer | E7: ='Plan G+V'!D9 -> 2017 | F7: ='Plan G+V'!F9 -> 2018 | G7: ='Plan G+V'!H9 -> 2019
B8: I. Immaterielle Vermögensgegenstände
A9: 1 | B9: Immaterielles Anlagegut 1 | C9: Softwarelizenz | D9: 3 | E9: 3300 | F9: 1100
A10: 2 | B10: Abschreibung | E10: =IF(D9="",0,E9/D9) -> 1100 | F10: =IF(D9="",0,IF(D9<2,F9/D9,(E9+F9)/D9)) -> 1466.666667 | G10: =IF(D9="",0,IF(D9<2,G9/D9,IF(D9<3,(F9+G9)/D9,(E9+F9+G9)/D9))) -> 1466.666667
A11: 3 | B11: Immaterielles Anlagegut 2
A12: 4 | B12: Abschreibung | E12: =IF(D11="",0,E11/D11) -> 0 | F12: =IF(D11="",0,IF(D11<2,F11/D11,(E11+F11)/D11)) -> 0 | G12: =IF(D11="",0,IF(D11<2,G11/D11,IF(D11<3,(F11+G11)/D11,(E11+F11+G11)/D11))) -> 0
A13: 5 | B13: Summe Investitionen immaterielle Anlagegüter | E13: =E9+E11 -> 3300 | F13: 1100 | G13: 0
A14: 6 | B14: Summe Abschreibungen immaterialle Anlagegüter | E14: 1100 | F14: 1466.666667 | G14: 1466.666667
B15: II. Sachanlagen
A16: 7 | B16: Grundstücke | C16: in der Regel keine Abschreibung!
A17: 8 | B17: Gebäude | C17: Je nach Nutzung 40 bis 66,67 Jahre
A18: 9 | B18: Abschreibung | E18: =IF(D17="",0,E17/D17) -> 0 | F18: =IF(D17="",0,IF(D17<2,F17/D17,(E17+F17)/D17)) -> 0 | G18: =IF(D17="",0,IF(D17<2,G17/D17,IF(D17<3,(F17+G17)/D17,(E17+F17+G17)/D17))) -> 0
A19: 10 | B19: Adaptierungen gemieteter Gebäude | C19: zB verbleibende Mietdauer, sonst Schätzung.
A20: 11 | B20: Abschreibung | E20: =IF(D19="",0,E19/D19) -> 0 | F20: =IF(D19="",0,IF(D19<2,F19/D19,(E19+F19)/D19)) -> 0 | G20: =IF(D19="",0,IF(D19<2,G19/D19,IF(D19<3,(F19+G19)/D19,(E19+F19+G19)/D19))) -> 0
A21: 12 | B21: Summe Investitionen Grundstücke, Gebäude | E21: =E16+E17+E19 -> 0 | F21: =F16+F17+F19 -> 0 | G21: =G16+G17+G19 -> 0
A22: 13 | B22: Summe Abschreibungen Grundstücke, Gebäude | E22: =E18+E20 -> 0 | F22: =F18+F20 -> 0 | G22: =G18+G20 -> 0
A23: 14 | B23: Maschine 1
A24: 15 | B24: Abschreibung | E24: =IF(D23="",0,E23/D23) -> 0 | F24: =IF(D23="",0,IF(D23<2,F23/D23,(E23+F23)/D23)) -> 0 | G24: =IF(D23="",0,IF(D23<2,G23/D23,IF(D23<3,(F23+G23)/D23,(E23+F23+G23)/D23))) -> 0
A26: Investitionen und Abschreibungen 2/2
E28: Jahr 1 | F28: Jahr 2 | G28: Jahr 3
A29: Nr. | B29: Posten | C29: Anmerkung | D29: Nutzungsdauer | E29: ='Plan G+V'!D9 -> 2017 | F29: ='Plan G+V'!F9 -> 2018 | G29: ='Plan G+V'!H9 -> 2019
A30: 16 | B30: Maschine 2
A31: 17 | B31: Abschreibung | E31: =IF(D30="",0,E30/D30) -> 0 | F31: =IF(D30="",0,IF(D30<2,F30/D30,(E30+F30)/D30)) -> 0 | G31: =IF(D30="",0,IF(D30<2,G30/D30,IF(D30<3,(F30+G30)/D30,(E30+F30+G30)/D30))) -> 0
A32: 18 | B32: Maschine 3
A33: 19 | B33: Abschreibung | E33: =IF(D32="",0,E32/D32) -> 0 | F33: =IF(D32="",0,IF(D32<2,F32/D32,(E32+F32)/D32)) -> 0 | G33: =IF(D32="",0,IF(D32<2,G32/D32,IF(D32<3,(F32+G32)/D32,(E32+F32+G32)/D32))) -> 0
A34: 20 | B34: Summe Investitionen Maschinen | E34: =E23+E30+E32 -> 0 | F34: =F23+F30+F32 -> 0 | G34: =G23+G30+G32 -> 0
A35: 21 | B35: Summe Abschreibungen Maschinen | E35: 0 | F35: 0 | G35: 0
A36: 22 | B36: Betriebs- und Geschäftsausstattung | C36: Telefon, Schreibtisch, Sessel,Lampen und Kästen | D36: 5 | E36: 15870 | F36: 2390
A37: 23 | B37: Abschreibung | E37: =IF(D36="",0,E36/D36) -> 3174 | F37: =IF(D36="",0,IF(D36<2,F36/D36,(E36+F36)/D36)) -> 3652 | G37: =IF(D36="",0,IF(D36<2,G36/D36,IF(D36<3,(F36+G36)/D36,(E36+F36+G36)/D36))) -> 3652
A38: 24 | B38: Computer | C38: 1x pro Mitarbeiter | D38: 3 | E38: 17400 | F38: 5800
A39: 25 | B39: Abschreibung | E39: =IF(D38="",0,E38/D38) -> 5800 | F39: =IF(D38="",0,IF(D38<2,F38/D38,(E38+F38)/D38)) -> 7733.333333 | G39: =IF(D38="",0,IF(D38<2,G38/D38,IF(D38<3,(F38+G38)/D38,(E38+F38+G38)/D38))) -> 7733.333333
A40: 26 | B40: Server | C40: 1 Server | D40: 3 | E40: 5000
A41: 27 | B41: Abschreibung | E41: =IF(D40="",0,E40/D40) -> 1666.666667 | F41: =IF(D40="",0,IF(D40<2,F40/D40,(E40+F40)/D40)) -> 1666.666667 | G41: =IF(D40="",0,IF(D40<2,G40/D40,IF(D40<3,(F40+G40)/D40,(E40+F40+G40)/D40))) -> 1666.666667
A42: 28 | B42: Drucker | C42: 2 Stück | D42: 3 | E42: 1400
A43: 29 | B43: Abschreibung | E43: =IF(D42="",0,E42/D42) -> 466.6666667 | F43: =IF(D42="",0,IF(D42<2,F42/D42,(E42+F42)/D42)) -> 466.6666667 | G43: =IF(D42="",0,IF(D42<2,G42/D42,IF(D42<3,(F42+G42)/D42,(E42+F42+G42)/D42))) -> 466.6666667
A44: 30 | B44: Summe sonstige Investitionen | E44: =E38+E40+E42 -> 23800 | F44: 5800 | G44: 0
A45: 31 | B45: Summe sonstige Abschreibungen | E45: 7933.333333 | F45: 9866.666667 | G45: 9866.666667
A46: Summe Investitionen insgesamt | E46: =E13+E21+E36+E34+E44 -> 42970 | F46: 9290 | G46: 0
A47: Summe Abschreibungen insgesamt | E47: 12207.33333 | F47: 14985.33333 | G47: 14985.33333
A48: Eine Unterscheidung in 1/2 bzw. ganzjährige Afa wird nicht vorgenommen.

Sheet Liquidität
B1: =+Übersichtsblatt!B24 -> Planbilanz | D1: Übersicht | F1: =+Übersichtsblatt!G17 -> Kennzahlen
A2: ='Plan G+V'!C3 -> BigNet Netzwerklösungen GmbH
A3: Liquiditätsplanung
A4: für die ersten drei Geschäftsjahre
D6: Jahr 1 | E6: Jahr 2 | F6: Jahr 3 | G6: (Berechnungsspalte Jahr 4)
B7: Posten | C7: Anmerkung | D7: ='Plan G+V'!D9 -> 2017 | E7: ='Plan G+V'!F9 -> 2018 | F7: ='Plan G+V'!H9 -> 2019
A8: 1 | B8: Einnahmen (aus Vorjahr inkl. USt) | E8: ='Plan G+V'!D10*(1-Allg.Angaben!$C40)+'Plan G+V'!D10*(1+Allg.Angaben!$D40)*Allg.Angaben!$C40-Liquidität!D9+'Plan G+V'!D14*Allg.Angaben!$C41*(1+Allg.Angaben!$D41)+'Plan G+V'!D14*(1-Allg.Angaben!$C41)-D10 -> 27000 | F8: ='Plan G+V'!F10*(1-Allg.Angaben!$F40)+'Plan G+V'!F10*(1+Allg.Angaben!$G40)*Allg.Angaben!$F40-Liquidität!E9+'Plan G+V'!F14*Allg.Angaben!$F41*(1+Allg.Angaben!$G41)+'Plan G+V'!F14*(1-Allg.Angaben!$F41)-E10 -> 88008.75 | G8: ='Plan G+V'!H10*(1-Allg.Angaben!$I40)+'Plan G+V'!H10*(1+Allg.Angaben!$J40)*Allg.Angaben!$I40-Liquidität!F9+'Plan G+V'!H14*Allg.Angaben!$I41*(1+Allg.Angaben!$J41)+'Plan G+V'!H14*(1-Allg.Angaben!$I41)-F10 -> 148852.5
A9: 2 | B9: Einnahmen Umsatzerlöse (inkl. Ust.) | D9: ='Plan G+V'!D10*Allg.Angaben!$B40*Allg.Angaben!$C40*(1+Allg.Angaben!$D40)+'Plan G+V'!D10*Allg.Angaben!$B40*(1-Allg.Angaben!$C40) -> 153000 | E9: ='Plan G+V'!F10*Allg.Angaben!$E40*Allg.Angaben!$F40*(1+Allg.Angaben!G40)+'Plan G+V'!F10*Allg.Angaben!$E40*(1-Allg.Angaben!$F40) -> 498716.25 | F9: ='Plan G+V'!H10*Allg.Angaben!$H40*Allg.Angaben!$I40*(1+Allg.Angaben!J40)+'Plan G+V'!H10*Allg.Angaben!$H40*(1-Allg.Angaben!$I40) -> 843157.5
A10: 3 | B10: Sonstige betriebl. Erträge (inkl. Ust.) | D10: =('Plan G+V'!D14+'Plan G+V'!D26)*Allg.Angaben!$B41*Allg.Angaben!$C41*(1+Allg.Angaben!$D41)+('Plan G+V'!D14+'Plan G+V'!D26)*Allg.Angaben!$B41*(1-Allg.Angaben!$C41) -> 0 | E10: =('Plan G+V'!F14+'Plan G+V'!F26)*Allg.Angaben!$E41*Allg.Angaben!$F41*(1+Allg.Angaben!$G41)+('Plan G+V'!F14+'Plan G+V'!F26)*Allg.Angaben!$E41*(1-Allg.Angaben!$F41) -> 0 | F10: =('Plan G+V'!H14+'Plan G+V'!H26)*Allg.Angaben!$H41*Allg.Angaben!$I41*(1+Allg.Angaben!$J41)+('Plan G+V'!H14+'Plan G+V'!H26)*Allg.Angaben!$H41*(1-Allg.Angaben!$I41) -> 60
A11: 4 | B11: Einnahmen gesamt | D11: =SUM(D8:D10) -> 153000 | E11: =SUM(E8:E10) -> 525716.25 | F11: =SUM(F8:F10) -> 931226.25
A12: 5 | B12: Zahlungen (für Vorjahr) | E12: =(-'Blatt 4 WES'!D22*(1-Allg.Angaben!$C44)-'Blatt 4 WES'!D22*(1+Allg.Angaben!$D44)*Allg.Angaben!$C44-Liquidität!D13+'Plan G+V'!D19*Allg.Angaben!$C48*(1+Allg.Angaben!$D48)+'Plan G+V'!D19*(1-Allg.Angaben!$C48)-D17) -> -6862 | F12: =(-'Blatt 4 WES'!E22*(1-Allg.Angaben!$F44)-'Blatt 4 WES'!E22*(1+Allg.Angaben!$G44)*Allg.Angaben!$F44-Liquidität!E13+'Plan G+V'!F19*Allg.Angaben!$F48*(1+Allg.Angaben!$G48)+'Plan G+V'!F19*(1-Allg.Angaben!$F48)-E17) -> -1102.96 | G12: =(-'Blatt 4 WES'!F22*(1-Allg.Angaben!$I44)-'Blatt 4 WES'!F22*(1+Allg.Angaben!$J44)*Allg.Angaben!$I44-Liquidität!F13+'Plan G+V'!H19*Allg.Angaben!$I48*(1+Allg.Angaben!$J48)+'Plan G+V'!H19*(1-Allg.Angaben!$I48)-F17) -> -1337.416
A13: 6 | B13: Waren- Materialeinkauf (inkl. Ust.) | D13: =-('Blatt 4 WES'!D22*Allg.Angaben!$B44*Allg.Angaben!$C44*(1+Allg.Angaben!$D44)+'Blatt 4 WES'!D22*Allg.Angaben!$B44*(1-Allg.Angaben!$C44)) -> -360 | E13: =-('Blatt 4 WES'!E22*Allg.Angaben!$E44*Allg.Angaben!$F44*(1+Allg.Angaben!$G44)+'Blatt 4 WES'!E22*Allg.Angaben!$E44*(1-Allg.Angaben!$F44)) -> -90 | F13: =-('Blatt 4 WES'!F22*Allg.Angaben!$H44*Allg.Angaben!$I44*(1+Allg.Angaben!$J44)+'Blatt 4 WES'!F22*Allg.Angaben!$H44*(1-Allg.Angaben!$I44)) -> -90
A14: 7 | B14: Personalaufwand | D14: ='Plan G+V'!D17 -> -231420 | E14: ='Plan G+V'!F17 -> -374047.8 | F14: ='Plan G+V'!H17 -> -431632.404
A15: 8 | B15: Umsatzsteuerzahlungen Vorjahr | E15: =-('Plan G+V'!D10*(1-Allg.Angaben!$B47)*Allg.Angaben!$C40*Allg.Angaben!$D40+'Plan G+V'!D14*(1-Allg.Angaben!$B47)*Allg.Angaben!$C41*Allg.Angaben!$D41)+('Blatt 4 WES'!D22*(1-Allg.Angaben!$B47)*Allg.Angaben!$C44*+Allg.Angaben!$D44-'Plan G+V'!D19*(1-Allg.Angaben!$B47)*Allg.Angaben!$C48*(Allg.Angaben!$D48)) -> -3811.4 | F15: =-('Plan G+V'!F10*(1-Allg.Angaben!$E47)*Allg.Angaben!$F40*Allg.Angaben!$G40+'Plan G+V'!F14*(1-Allg.Angaben!$E47)*Allg.Angaben!$F41*Allg.Angaben!$G41)+('Blatt 4 WES'!E22*(1-Allg.Angaben!$E47)*Allg.Angaben!$F44*+Allg.Angaben!$G44-'Plan G+V'!F19*(1-Allg.Angaben!$E47)*Allg.Angaben!$F48*(Allg.Angaben!$G48)) -> -15075.515 | G15: =-('Plan G+V'!H10*(1-Allg.Angaben!$H47)*Allg.Angaben!$I40*Allg.Angaben!$J40+'Plan G+V'!H14*(1-Allg.Angaben!$H47)*Allg.Angaben!$I41*Allg.Angaben!$J41)+('Blatt 4 WES'!F22*(1-Allg.Angaben!$H47)*Allg.Angaben!$I44*+Allg.Angaben!$J44-'Plan G+V'!H19*(1-Allg.Angaben!$H47)*Allg.Angaben!$I48*(Allg.Angaben!$J48)) -> -26228.144
A16: 8a | B16: Umsatzsteuerzahlungen Vorsteuergutschrift: +, Ust-Zahhlung - | D16: =-('Plan G+V'!D10*Allg.Angaben!$B47*Allg.Angaben!$C40*Allg.Angaben!$D40+'Plan G+V'!D14*Allg.Angaben!$B47*Allg.Angaben!$C41*Allg.Angaben!$D41)+('Blatt 4 WES'!D22*Allg.Angaben!$B47*Allg.Angaben!$C44*(+Allg.Angaben!$D44)-'Plan G+V'!D19*Allg.Angaben!$B47*Allg.Angaben!$C48*(Allg.Angaben!$D48)) -> -18608.6 | E16: =-('Plan G+V'!F10*Allg.Angaben!$E47*Allg.Angaben!$F40*Allg.Angaben!$G40+'Plan G+V'!F14*Allg.Angaben!$E47*Allg.Angaben!$F41*Allg.Angaben!$G41)+('Blatt 4 WES'!E22*Allg.Angaben!$E47*Allg.Angaben!$F44*(+Allg.Angaben!$G44)-'Plan G+V'!F19*Allg.Angaben!$E47*Allg.Angaben!$F48*(Allg.Angaben!$G48)) -> -73603.985 | F16: =-('Plan G+V'!H10*Allg.Angaben!$H47*Allg.Angaben!$I40*Allg.Angaben!$J40+'Plan G+V'!H14*Allg.Angaben!$H47*Allg.Angaben!$I41*Allg.Angaben!$J41)+('Blatt 4 WES'!F22*Allg.Angaben!$H47*Allg.Angaben!$I44*(+Allg.Angaben!$J44)-'Plan G+V'!H19*Allg.Angaben!$H47*Allg.Angaben!$I48*(Allg.Angaben!$J48)) -> -128055.056
A17: 9 | B17: sonst. betriebl. Aufwand (inkl. Ust.) | D17: =('Plan G+V'!D19+'Plan G+V'!D27)*Allg.Angaben!$B48*Allg.Angaben!$C48*(1+Allg.Angaben!$D48)+('Plan G+V'!D19+'Plan G+V'!D27)*Allg.Angaben!$B48*(1-Allg.Angaben!$C48) -> -38658 | E17: =('Plan G+V'!F19+'Plan G+V'!DF27)*Allg.Angaben!$E48*Allg.Angaben!$F48*(1+Allg.Angaben!$G48)+('Plan G+V'!F19+'Plan G+V'!F27)*Allg.Angaben!$E48*(1-Allg.Angaben!$F48) -> -53555.04 | F17: =('Plan G+V'!H19+'Plan G+V'!H27)*Allg.Angaben!$H48*Allg.Angaben!$I48*(1+Allg.Angaben!$J48)+('Plan G+V'!H19+'Plan G+V'!H27)*Allg.Angaben!$H48*(1-Allg.Angaben!$I48) -> -65043.384
A18: 10 | B18: Ausgaben | D18: =SUM(D12:D17) -> -289046.6 | E18: =SUM(E12:E17) -> -511970.225 | F18: =SUM(F12:F17) -> -640999.319
A19: 11 | B19: Steuern vom Einkommen/Ertrag | D19: 0 | E19: ='Plan G+V'!D28 -> -500 | F19: =IFERROR('Plan G+V'!F28,0) -> -3081.905276 | G19: =IFERROR('Plan G+V'!H28,0) -> -57070.00843
A20: 12 | B20: Privatentnahmen/Ausschüttungen
A21: 13 | B21: Privatausgaben/Ausschüttungen | D21: =SUM(D19:D20) -> 0 | E21: =SUM(E19:E20) -> -500 | F21: =SUM(F19:F20) -> -3081.905276
A22: 14 | B22: Investitionen | D22: =-Investitionen!E46 -> -42970 | E22: =-Investitionen!F46 -> -9290 | F22: =-Investitionen!G46 -> 0
A23: 15 | B23: Ausgaben gesamt | D23: =D18+D21+D22 -> -332016.6 | E23: =E18+E21+E22 -> -521760.225 | F23: =F18+F21+F22 -> -644081.2243
A24: 16 | B24: Zinszu- und -abflüsse Vorjahr | D24: 0 | E24: ='Plan G+V'!D22-Liquidität!D25-Liquidität!D26+'Plan G+V'!D23 -> 0 | F24: ='Plan G+V'!F22-Liquidität!E25-Liquidität!E26+'Plan G+V'!F23 -> 0 | G24: ='Plan G+V'!H22-Liquidität!F25-Liquidität!F26+'Plan G+V'!H23 -> 0
A25: 17 | B25: Zinseinnahmen | D25: ='Plan G+V'!D22*Allg.Angaben!$B52 -> 118.0070352 | E25: ='Plan G+V'!F22*Allg.Angaben!$C52 -> 166.1177489 | F25: ='Plan G+V'!H22*Allg.Angaben!$D52 -> 778.2340478
A26: 18 | B26: Zinsausgaben | D26: ='Plan G+V'!D23*Allg.Angaben!$B53 -> -4500 | E26: ='Plan G+V'!F23*Allg.Angaben!$C53 -> -5500 | F26: ='Plan G+V'!H23*Allg.Angaben!$D53 -> 0
A27: 19 | B27: Zinszahlungsströme | D27: =D25+D26 -> -4381.992965 | E27: =SUM(E24:E26) -> -5333.882251 | F27: =SUM(F24:F26) -> 778.2340478
A28: 20 | B28: Mittelbedarf(-)/Überschuss(+) | D28: =D11+D23+D27 -> -183398.593 | E28: =E11+E23+E27 -> -1377.857251 | F28: =F11+F23+F27 -> 287923.2598
A30: 21 | B30: Bankverb(+)/Liquide Mittel(-) 1.1. | D30: 0 | E30: =+D34 -> 55898.59296 | F30: =+E30+E34 -> 103175.0432
A31: 22 | B31: Mittelbedarf/Überschuss | D31: =D28 -> -183398.593 | E31: =E28 -> -1377.857251 | F31: =F28 -> 287923.2598
A32: 23 | B32: Eigenmitteländerung | D32: =D64 -> 127500 | E32: =E64 -> 10000 | F32: =F64 -> -85000
A33: 24 | B33: Fremdmittelbedarf | D33: =+-D31-D32 -> 55898.59296 | E33: =+-E31-E32 -> -8622.142749 | F33: =+-F31-F32 -> -202923.2598
A34: 25 | B34: Bankverb(+)/Liqu. Mittel(-) 31.12. | D34: =+D33+D30 -> 55898.59296 | E34: =+E33+E30 -> 47276.45022 | F34: =+F33+F30 -> -99748.21659
A36: Zufuhr/Abfluß von Eigenmitteln:
A37: Eigenmittel
A38: 1 | B38: (+)Nennkapitaleinzahlung/ (-) Nennkapitalrückzahlung | D38: 35000
A39: 2 | B39: (+)Bareinlagen/ (-)Barentnahmen | D39: 17500
A40: Summe Veränderung Eigenmittel | D40: =D38+D39 -> 52500 | E40: =E38+E39 -> 0 | F40: =F38+F39 -> 0
A41: Summe Eigenmittel | D41: =D40 -> 52500 | E41: =E40+D41 -> 52500 | F41: =F40+E41 -> 52500 | G41: Zinssätze in % pro Jahr
A42: Gesellschafterdarlehen | D42: Darlehenssumme zum Bilanzstichtag | G42: =D$7 -> 2017 | H42: =E$7 -> 2018 | I42: =F$7 -> 2019
A43: 3 | B43: Darlehen 1 | D43: 75000 | E43: 50000 | F43: 0 | G43: 0.03 | H43: 0.03 | I43: 0.03
A44: 4 | B44: Veränderung liqu. Mittel Darlehen 1 | D44: =D43 -> 75000 | E44: =E43-D43 -> -25000 | F44: =F43-E43 -> -50000
A45: 5 | B45: Darlehen 2
A46: 6 | B46: Veränderung liqu. Mittel Darlehen 2 | D46: =D45 -> 0 | E46: =E45-D45 -> 0 | F46: =F45-E45 -> 0
A47: 7 | B47: Darlehen 3
A48: 8 | B48: Veränderung liqu. Mittel Darlehen 3 | D48: =D47 -> 0 | E48: =E47-D47 -> 0 | F48: =F47-E47 -> 0
A49: 9 | B49: Darlehen 4
A50: 10 | B50: Veränderung liqu. Mittel Darlehen 4 | D50: =D49 -> 0 | E50: =E49-D49 -> 0 | F50: =F49-E49 -> 0
A51: Summe Gesellschafterdarlehen | D51: =D43+D45+D47+D49 -> 75000 | E51: 50000 | F51: 0
A52: Summe Veränderung Ges. Darlehen | D52: 75000 | E52: -25000 | F52: -50000 | G52: Zinssätze in % pro Jahr
A53: Stille Gesellschafter | D53: Beteiligungssumme zum Bilanzstichtag | G53: =D$7 -> 2017 | H53: =E$7 -> 2018 | I53: =F$7 -> 2019
A54: 11 | B54: Stille Beteiligung 1 | E54: 35000 | F54: 0 | H54: 0.05 | I54: 0.05
A55: 12 | B55: Veränderung Stille Beteiligung 1 | D55: =D54 -> 0 | E55: =E54-D54 -> 35000 | F55: =F54-E54 -> -35000
A56: 13 | B56: Stille Beteiligung 2
A57: 14 | B57: Veränderung Stille Beteiligung 2 | D57: =D56 -> 0 | E57: =E56-D56 -> 0 | F57: =F56-E56 -> 0
A58: 15 | B58: Stille Beteiligung 3
A59: 16 | B59: Veränderung Stille Beteiligung 3 | D59: =D58 -> 0 | E59: =E58-D58 -> 0 | F59: =F58-E58 -> 0
A60: 17 | B60: Stille Beteiligung 4
A61: 18 | B61: Veränderung Stille Beteiligung 4 | D61: =D60 -> 0 | E61: =E60-D60 -> 0 | F61: =F60-E60 -> 0
A62: Summe stiller Beteiligungen | D62: =D54+D56+D60+D58 -> 0 | E62: 35000 | F62: 0
A63: Summe Veränderung stiller Bet. | D63: 0 | E63: 35000 | F63: -35000
A64: Veränderung Eigenmittel gesamt | D64: =D38+D39+D63+D52 -> 127500 | E64: =E38+E39+E63+E52 -> 10000 | F64: =F38+F39+F63+F52 -> -85000
A66: Zusammensetzung Fremdkapital und Deckung des Fremdmittelbedarfs bzw. verfügbare liquide Mittel:
B67: Fremdmittelbedarf/ (-)Liquide Mittel | D67: =IFERROR(D33,0) -> 55898.59296 | E67: =IFERROR(E33,0) -> -8622.142749 | F67: =IFERROR(F33,0) -> -202923.2598 | G67: Zinssätze in % pro Jahr
A68: Bankkredite | D68: Kreditsumme zum Bilanzstichtag | G68: =D$7 -> 2017 | H68: =E$7 -> 2018 | I68: =F$7 -> 2019
A69: 1 | B69: Kredit 1: | D69: 75000 | E69: 75000 | F69: 0 | G69: 0.03 | H69: 0.03 | I69: 0.03
A70: 2 | B70: Veränderung Kredit 1 | D70: =D69 -> 75000 | E70: =E69-D69 -> 0 | F70: =F69-E69 -> -75000
A71: 3 | B71: Kredit 2:
A72: 4 | B72: Veränderung Kredit 2 | D72: =D71 -> 0 | E72: =E71-D71 -> 0 | F72: =F71-E71 -> 0
A73: 5 | B73: Kredit 3:
A74: 6 | B74: Veränderung Kredit 3 | D74: =D73 -> 0 | E74: =E73-D73 -> 0 | F74: =F73-E73 -> 0
A75: 7 | B75: Kredit 4:
A76: 8 | B76: Veränderung Kredit 4 | D76: =D75 -> 0 | E76: =E75-D75 -> 0 | F76: =F75-E75 -> 0
A77: 9 | B77: Summe Kredite | D77: =D69+D71+D75+D73 -> 75000 | E77: 75000 | F77: 0
A78: 10 | B78: Summe Veränderung Kredite | D78: 75000 | E78: 0 | F78: -75000 | G78: Zinssätze in % pro Jahr
A79: Kontokorrentkredite | D79: Kontokorrenkreditsumme zum Bilanzstichtag | G79: =D$7 -> 2017 | H79: =E$7 -> 2018 | I79: =F$7 -> 2019
A80: 11 | B80: KK1
A81: 12 | B81: Veränderung KK 1 | D81: =D80 -> 0 | E81: =E80-D80 -> 0 | F81: =F80-E80 -> 0
A82: 13 | B82: KK2
A83: 14 | B83: Veränderung KK 2 | D83: =D82 -> 0 | E83: =E82-D82 -> 0 | F83: =F82-E82 -> 0
A84: 15 | B84: KK3
A85: 16 | B85: Veränderung KK 3 | D85: =D84 -> 0 | E85: =E84-D84 -> 0 | F85: =F84-E84 -> 0
A86: 17 | B86: Summe Kontokorrentkredite | D86: =IFERROR(D80+D82+D84+D90,0) -> 4500 | E86: =IFERROR(E80+E82+E84+E90,0) -> 5500 | F86: =F80+F82+F84+F90 -> 0
A87: 18 | B87: Summe Veränderung KK | D87: =+D86 -> 4500 | E87: =IFERROR(E81+E83+E85+E91,0) -> 1000 | F87: =IFERROR(F81+F83+F85+F91,0) -> -5500
A88: Summe Fremdkapital | D88: =D77+D86 -> 79500 | E88: 80500 | F88: 0
A89: Summe Veränderung Fremkapital | D89: 79500 | E89: 1000 | F89: -80500
A90: 19 | B90: Zinsen | D90: =IFERROR(D93,0) -> 4500 | E90: =IFERROR(E93,0) -> 5500 | F90: =+F93 -> 0
A91: 20 | B91: Veränderung Zinsen | D91: =D90 -> 4500 | E91: =E90-D90 -> 1000 | F91: =F90-E90 -> -5500
A92: 21 | B92: Differenz zu benötigten Mitteln | D92: =-D67+D89 -> 23601.40704 | E92: =-E67+E89+D92 -> 33223.54978 | F92: =-F67+F89+E92 -> 155646.8096
A93: Summe Zinsbelastung | D93: =D69*G69+D71*G71+D73*G73+D75*G75+D80*G80+D82*G82+D84*G84+D90*G90+D43*G43+D45*G45+D47*G47+D49*G49+D54*G54+D56*G56+D58*G58+D60*G60 -> 4500 | E93: =E69*H69+E71*H71+E73*H73+E75*H75+E80*H80+E82*H82+E84*H84+E90*H90+E43*H43+E45*H45+E47*H47+E49*H49+E54*H54+E56*H56+E58*H58+E60*H60 -> 5500 | F93: =F69*I69+F71*I71+F73*I73+F75*I75+F80*I80+F82*I82+F84*I84+F90*I90+F43*I43+F45*I45+F47*I47+F49*I49+F54*I54+F56*I56+F58*I58+F60*I60 -> 0
A95: Kontrolle: Haben Sie genügend liquide Mittel? | D95: =IF(D92>0.5,"Ihre Liquidität übersteigt die benötigten Mittel!",IF(D92<-0.5,"Sie haben zu wenig liquide Mittel!","OK")) -> Ihre Liquidität übersteigt die benötigten Mittel! | E95: =IF(E92>0.5,"Ihre Liquidität übersteigt die benötigten Mittel!",IF(E92<-0.5,"Sie haben zu wenig liquide Mittel!","OK")) -> Ihre Liquidität übersteigt die benötigten Mittel! | F95: =IF(F92>0.5,"Ihre Liquidität übersteigt die benötigten Mittel!",IF(F92<-0.5,"Sie haben zu wenig liquide Mittel!","OK")) -> Ihre Liquidität übersteigt die benötigten Mittel!

Sheet Planbilanz
B1: =+Übersichtsblatt!B22 -> Investitionsplanung | D1: Übersicht | F1: =+Übersichtsblatt!B26 -> Liquiditätsplanung
A3: ='Plan G+V'!C3 -> BigNet Netzwerklösungen GmbH
A5: Planbilanz 1/2
A6: für die ersten drei Geschäftsjahre
D8: Jahr 1 | E8: Jahr 2 | F8: Jahr 3
A9: Nr | B9: Posten | D9: ='Plan G+V'!D9 -> 2017 | E9: ='Plan G+V'!F9 -> 2018 | F9: ='Plan G+V'!H9 -> 2019
A10: Aktiva
B11: A. Anlagevermögen
A12: 1 | B12: I. Immaterielle Vermögensgegenstände | D12: =Investitionen!E13-Investitionen!E14 -> 2200 | E12: =D12+Investitionen!F13-Investitionen!F14 -> 1833.333333 | F12: =E12+Investitionen!G13-Investitionen!G14 -> 366.6666667
A13: 2 | B13: II. Sachanlagen:
A14: 3 | B14: 1. Grundstücke, Gebäude | D14: =Investitionen!E21-Investitionen!E22 -> 0 | E14: =D14+Investitionen!F21-Investitionen!F22 -> 0 | F14: =E14+Investitionen!G21-Investitionen!G22 -> 0
A15: 4 | B15: 2. Technische Anlagen und Maschinen | D15: =Investitionen!E34-Investitionen!E35 -> 0 | E15: =Investitionen!F34-Investitionen!F35+D15 -> 0 | F15: =Investitionen!G34-Investitionen!G35+E15 -> 0
A16: 5 | B16: 3. Betriebs- und Geschäftsausstattung | D16: =Investitionen!E36-Investitionen!E37 -> 12696 | E16: =Investitionen!F36-Investitionen!F37+D16 -> 11434 | F16: =Investitionen!G36-Investitionen!G37+E16 -> 7782
A17: 6 | B17: 4. Andere Anlagen | D17: =Investitionen!E44-Investitionen!E45 -> 15866.66667 | E17: =Investitionen!F44-Investitionen!F45+D17 -> 11800 | F17: =Investitionen!G44-Investitionen!G45+E17 -> 1933.333333
A18: 7 | B18: 5. Aktivierte Eigenleistungen | D18: ='Blatt 3 AktE'!E27-'Blatt 3 AktE'!E28 -> 2000 | E18: ='Blatt 3 AktE'!E27+'Blatt 3 AktE'!F27-'Blatt 3 AktE'!E28-'Blatt 3 AktE'!F28 -> 3380 | F18: =E18+'Blatt 3 AktE'!G27-'Blatt 3 AktE'!G28 -> 4210
B19: Summe Anlagevermögen | D19: =SUM(D14:D18)+D12 -> 32762.66667 | E19: =SUM(E14:E18)+E12 -> 28447.33333 | F19: =SUM(F14:F18)+F12 -> 14292
B20: B. Umlaufvermögen
A21: 8 | B21: I. Vorräte:
A22: 9 | B22: 1. Waren/Material | D22: ='Blatt 4 WES'!D20 -> 300 | E22: ='Blatt 4 WES'!E20 -> 300 | F22: ='Blatt 4 WES'!F20 -> 300
A23: 10 | B23: 2. Halbfertige/fertige Erz., n.n.a.Leistungen | D23: ='Blatt 2 BÄ'!D27 -> 3000 | E23: ='Blatt 2 BÄ'!E27 -> 10000 | F23: ='Blatt 2 BÄ'!F27 -> 0
A24: 11 | B24: II. Forderungen | D24: =Liquidität!E8 -> 27000 | E24: =Liquidität!F8 -> 88008.75 | F24: =Liquidität!G8 -> 148852.5 | G24: Zinssätze in % pro Jahr
A25: 12 | B25: III. Sonstige Forderungen | D25: =IF(Liquidität!E24>0,Liquidität!E24,0) -> 0 | E25: =IFERROR(IF(Liquidität!F24>0,Liquidität!F24,0),0) -> 0 | F25: =IF(Liquidität!G24>0,Liquidität!G24,0) -> 0 | G25: =D9 -> 2017 | H25: =E9 -> 2018 | I25: =F9 -> 2019
A26: 13 | B26: IV. Kassa, Guthaben | C26: Habenzins | D26: =IFERROR(IF(Liquidität!D92>0,Liquidität!D92,0),0) -> 23601.40704 | E26: =IF(Liquidität!E92>0,Liquidität!E92,0) -> 33223.54978 | F26: =IFERROR(IF(Liquidität!F92>0,Liquidität!F92,0),0) -> 155646.8096 | G26: 0.005 | H26: 0.005 | I26: 0.005
B27: Summe Umlaufvermögen | D27: =SUM(D22:D26) -> 53901.40704 | E27: =SUM(E22:E26) -> 131532.2998 | F27: =SUM(F22:F26) -> 304799.3096
B28: C. Rechnungsabgrenzungsposten
A29: Summe Aktiva | D29: =+D19+D27+D28 -> 86664.0737 | E29: =+E19+E27+E28 -> 159979.6331 | F29: =+F19+F27+F28 -> 319091.3096
A31: Planbilanz 2/2
A32: für die ersten drei Geschäftsjahre
D34: Jahr 1 | E34: Jahr 2 | F34: Jahr 3
A35: Nr | B35: Posten | D35: =D9 -> 2017 | E35: =E9 -> 2018 | F35: =F9 -> 2019
A36: Passiva
B37: A. Eigenkapital
A38: 14 | B38: I. Nennkapital (Grund-, Stammkapital) | D38: =Liquidität!D41 -> 52500 | E38: =Liquidität!E41 -> 52500 | F38: =Liquidität!F41 -> 52500
A39: 15 | B39: II. Kapitalrücklagen
A40: 16 | B40: III. Gewinnrücklagen
A41: 17 | B41: IV. Bilanzgewinn/Bilanzverlust | D41: ='Plan G+V'!D31 -> -131509.3263 | E41: ='Plan G+V'!F31 -> -77280.74716 | F41: ='Plan G+V'!H31 -> 181955.7411
A42: 18 | B42: V. Einlagen stiller Gesellschafter | D42: =Liquidität!D62 -> 0 | E42: =Liquidität!E62 -> 35000 | F42: =Liquidität!F62 -> 0
B43: Summe Eigenkapital | D43: =SUM(D41:D42)+D38 -> -79009.3263 | E43: =SUM(E41:E42)+E38 -> 10219.25284 | F43: =SUM(F41:F42)+F38 -> 234455.7411
B44: B. Verbindlichkeiten
A45: 19 | B45: 1. Gegenüber Kreditinstituten | D45: =IF(Liquidität!D88>0,Liquidität!D88,0)-IF(Liquidität!D92<0,Liquidität!D92,0) -> 79500 | E45: =IF(Liquidität!E88>0,Liquidität!E88,0)-IF(Liquidität!E92<0,Liquidität!E92,0) -> 80500 | F45: =IF(Liquidität!F88>0,Liquidität!F88,0)-IF(Liquidität!F92<0,Liquidität!F92,0) -> 0
A46: 20 | B46: 2. Gesellschafterdarlehen | D46: =Liquidität!D51 -> 75000 | E46: =Liquidität!E51 -> 50000 | F46: =Liquidität!F51 -> 0
A47: 21 | B47: 3. Aus Lieferungen/Leistungen | D47: =-Liquidität!E12 -> 6862 | E47: =-Liquidität!F12 -> 1102.96 | F47: =-Liquidität!G12 -> 1337.416
A48: 22 | B48: 4. Sonstige Verbindlichkeiten (Steuern, etc) | D48: =-Liquidität!E15-Liquidität!E19+IF(Liquidität!E24<0,-Liquidität!E24,0) -> 4311.4 | E48: =-Liquidität!F15-Liquidität!F19+IF(Liquidität!F24<0,-Liquidität!F24,0) -> 18157.42028 | F48: =-Liquidität!G15-Liquidität!G19+IF(Liquidität!G24<0,-Liquidität!G24,0) -> 83298.15243
B49: Summe Verbindlichkeiten | D49: =SUM(D45:D48) -> 165673.4 | E49: =SUM(E45:E48) -> 149760.3803 | F49: =SUM(F45:F48) -> 84635.56843
B50: C. Rechnungsabgrenzungsposten
A51: Summe Passiva | D51: =+D50+D49+D43 -> 86664.0737 | E51: =+E50+E49+E43 -> 159979.6331 | F51: =+F50+F49+F43 -> 319091.3096
A53: Check: Sind Aktiva und Passiva Summengleich? | D53: =IF(D29>D51+1,"Aktiva sind höher als Passiva!",IF(D29<D51-1,"Passiva sind höher als Aktiva!","OK")) -> OK | E53: =IF(E29>E51+1,"Aktiva sind höher als Passiva!",IF(E29<E51-1,"Passiva sind höher als Aktiva!","OK")) -> OK | F53: =IF(F29>F51+1,"Aktiva sind höher als Passiva!",IF(F29<F51-1,"Passiva sind höher als Aktiva!","OK")) -> OK
B54: Betrag | D54: =+D29-D51 -> 0 | E54: =+E29-E51 -> 0 | F54: =+F29-F51 -> 0

Sheet Kennzahlen
B1: =+Übersichtsblatt!B26 -> Liquiditätsplanung | D1: Übersicht | F1: V./Kap.-Struktur
A2: ='Plan G+V'!C3 -> BigNet Netzwerklösungen GmbH
G3: Kennzahlen für die Jahre 1 bis 3
A4: Kennzahlen | G4: =A2 -> BigNet Netzwerklösungen GmbH
A5: für die ersten drei Plan - Geschäftsjahre
D7: Jahr 1 | E7: Jahr 2 | F7: Jahr 3
B8: Posten | C8: Anmerkung | D8: ='Plan G+V'!D9 -> 2017 | E8: ='Plan G+V'!F9 -> 2018 | F8: ='Plan G+V'!H9 -> 2019
A9: 1 | B9: Personalintensität | C9: Personalaufwand/ Betriebsaufwand | D9: =IFERROR(IF('Plan G+V'!D$20<>0,'Plan G+V'!D17/'Plan G+V'!D$20,0),"") -> 0.8202679169 | E9: =IFERROR(IF('Plan G+V'!F$20<>0,'Plan G+V'!F17/'Plan G+V'!F$20,0),"") -> 0.8586105722 | F9: =IFERROR(IF('Plan G+V'!H$20<>0,'Plan G+V'!H17/'Plan G+V'!H$20,0),"") -> 0.8573546554
A10: 2 | B10: Materialintensität | C10: Waren-u.Materialeinsatz/ Betriebsaufwand | D10: =IFERROR(IF('Plan G+V'!D$20<>0,'Plan G+V'!D16/'Plan G+V'!D$20,0),"") -> 0.000354449882 | E10: =IFERROR(IF('Plan G+V'!F$20<>0,'Plan G+V'!F16/'Plan G+V'!F$20,0),"") -> 0.0002295456817 | F10: =IFERROR(IF('Plan G+V'!H$20<>0,'Plan G+V'!H16/'Plan G+V'!H$20,0),"") -> 0.000198630744
A11: 3 | B11: Bruttogewinnspanne | C11: Betriebsleistung-WES,Material/ Betriebsleistung | D11: =IFERROR(('Plan G+V'!D13+'Plan G+V'!D16)/'Plan G+V'!D13,"") -> 0.9993569132 | E11: =IFERROR(('Plan G+V'!F13+'Plan G+V'!F16)/'Plan G+V'!F13,"") -> 0.9997993126 | F11: =IFERROR(('Plan G+V'!H13+'Plan G+V'!H16)/'Plan G+V'!H13,"") -> 0.9998778812
A12: 4 | B12: Eigenkapitalquote | C12: Eigenkapital/ Gesamtkapital | D12: =IFERROR(Planbilanz!D43/Planbilanz!D51,"") -> -0.9116733489 | E12: =IFERROR(Planbilanz!E43/Planbilanz!E51,"") -> 0.06387846154 | F12: =IFERROR(Planbilanz!F43/Planbilanz!F51,"") -> 0.7347606597
A13: 5 | B13: Eigenkapitalrentabilität | C13: Ergebnis+Steuern/ Eigenkapital | D13: =IFERROR(('Plan G+V'!D25+'Plan G+V'!D28)/ABS(Planbilanz!D43),"") -> -1.664478517 | E13: =IFERROR(('Plan G+V'!F25+'Plan G+V'!F28)/ABS(Planbilanz!E43),"") -> 5.306511149 | F13: =IFERROR(('Plan G+V'!H25+'Plan G+V'!H28)/ABS(Planbilanz!F43),"") -> 1.105694777
A14: 6 | B14: Gesamtkapitalrentabilität | C14: Ergebnis-Zinsaufwand/ Gesamtkapital | D14: =IFERROR(('Plan G+V'!D25-'Plan G+V'!D23)/(Planbilanz!D43+Planbilanz!D49),"") -> -1.45976667 | E14: =IFERROR(('Plan G+V'!F25-'Plan G+V'!F23)/(Planbilanz!E43+Planbilanz!E49),"") -> 0.3926155048 | F14: =IFERROR(('Plan G+V'!H25-'Plan G+V'!H23)/(Planbilanz!F43+Planbilanz!F49),"") -> 0.9912726773
A15: 7 | B15: Umsatzrentabilität | D15: =IFERROR('Plan G+V'!D25/'Plan G+V'!D10,"") -> -0.8733955087 | E15: =IFERROR('Plan G+V'!F25/'Plan G+V'!F10,"") -> 0.117214336 | F15: =IFERROR('Plan G+V'!H25/'Plan G+V'!H10,"") -> 0.3826481134
A16: Analyse der Vermögensstruktur
A17: 8 | B17: Anlagenintensität | C17: Anlagevermögen/ Gesamtvermögen | D17: =IFERROR(Planbilanz!D19/(Planbilanz!D$19+Planbilanz!D$27),"") -> 0.3780420798 | E17: =IFERROR(Planbilanz!E19/(Planbilanz!E$19+Planbilanz!E$27),"") -> 0.1778184684 | F17: =IFERROR(Planbilanz!F19/(Planbilanz!F$19+Planbilanz!F$27),"") -> 0.04478968738
A18: 9 | B18: Sachanlagenintensität | C18: Sachanlagevermögen/ Gesamtvermögen | D18: =IFERROR(SUM(Planbilanz!D14:D18)/(Planbilanz!D$19+Planbilanz!D$27),"") -> 0.3526567049 | E18: =IFERROR(SUM(Planbilanz!E14:E18)/(Planbilanz!E$19+Planbilanz!E$27),"") -> 0.1663586763 | F18: =IFERROR(SUM(Planbilanz!F14:F18)/(Planbilanz!F$19+Planbilanz!F$27),"") -> 0.043640591
A19: 10 | B19: Lagerintensität | C19: Vorräte/Umlaufvermögen | D19: =IFERROR(SUM(Planbilanz!D22:D23)/(Planbilanz!D19+Planbilanz!D27),"") -> 0.03807806233 | E19: =IFERROR(SUM(Planbilanz!E22:E23)/(Planbilanz!E19+Planbilanz!E27),"") -> 0.06438319553 | F19: =IFERROR(SUM(Planbilanz!F22:F23)/(Planbilanz!F19+Planbilanz!F27),"") -> 0.0009401697602
A20: 11 | B20: Investitionsdeckung | C20: Investitionen+akt.Eigenlei- stungen/Abschreibungen | F20: =IF('Plan G+V'!H18<>0,(Investitionen!G46+'Blatt 3 AktE'!G27)/ABS('Plan G+V'!H18),"") -> 0.1371505202
A21: Umschlagshäufigkeiten
A22: 12 | B22: Vermögensumschlagshäufigkeit | C22: Umsatzerlöse/durchsch.Vermögen | D22: =IFERROR(('Plan G+V'!D10/Planbilanz!D29),"") -> 1.730821015 | E22: =IFERROR(('Plan G+V'!F10/(Planbilanz!D29+Planbilanz!E29)/2),"") -> 0.9911817867 | F22: =IFERROR('Plan G+V'!H10/(Planbilanz!E29+Planbilanz!F29)/2,"") -> 0.862737568
A23: 13 | B23: Umschlagsdauer in Tagen | D23: =IFERROR(IF(D22>0,365/D22,""),"") -> 210.8825793 | E23: =IFERROR(IF(E22>0,365/E22,""),"") -> 368.2472831 | F23: =IFERROR(IF(F22>0,365/F22,""),"") -> 423.0718744
A24: 14 | B24: Umschlagshäufigkeit der Vorräte/Waren | C24: Waren-u.Materialeinsatz/ durchschn. Vorräte | D24: =IFERROR(ABS('Plan G+V'!D16/(Planbilanz!D22+Planbilanz!D23)),"") -> 0.0303030303 | E24: =IFERROR(ABS('Plan G+V'!F16/(Planbilanz!E22+Planbilanz!E23+Planbilanz!D22+Planbilanz!D23)/2),"") -> 0.003676470588 | F24: =IFERROR(ABS('Plan G+V'!H16/(Planbilanz!F22+Planbilanz!F23+Planbilanz!E22+Planbilanz!E23)/2),"") -> 0.004716981132
A25: 15 | B25: Umschlagsdauer in Tagen | D25: =IFERROR(IF(D24>0,365/D24,""),"") -> 12045 | E25: =IFERROR(IF(E24>0,365/E24,""),"") -> 99280 | F25: =IFERROR(IF(F24>0,365/F24,""),"") -> 77380
A26: 16 | B26: Umschlagschlagshäufigkeit der Debitoren | C26: Umsatzerlöse/ durchschn. Forderungen | D26: =IFERROR(('Plan G+V'!D10+'Plan G+V'!D10*Allg.Angaben!C40*Allg.Angaben!D40)/Planbilanz!D24,"") -> 6.666666667 | E26: =IFERROR('Plan G+V'!F10/SUM(Planbilanz!D24:E26)/2,"") -> 1.422705443 | F26: =IFERROR(('Plan G+V'!H10+'Plan G+V'!H10*Allg.Angaben!I40*Allg.Angaben!J40)/((Planbilanz!F24+Planbilanz!E24)/2),"") -> 8.375789624
A27: 17 | B27: Umschlagsdauer in Tagen | D27: =IFERROR(IF(D26>0,365/D26,""),"") -> 54.75 | E27: =IFERROR(IF(E26>0,365/E26,""),"") -> 256.5534572 | F27: =IFERROR(IF(F26>0,365/F26,""),"") -> 43.57798087
A28: 18 | B28: Cash Flow | C28: Ergebnis + Abschreibungen +- Veränderungen | D28: =Liquidität!D28 -> -183398.593 | E28: =Liquidität!E28 -> -1377.857251 | F28: =Liquidität!F28 -> 287923.2598
A29: 19 | B29: Schuldentilgungsdauer | C29: Verbindlichkeiten /Ergebnis + Abschreibungen | D29: =IFERROR(IF((Planbilanz!D49/('Plan G+V'!D29-'Plan G+V'!D18))>0,(Planbilanz!D49/('Plan G+V'!D29-'Plan G+V'!D18)),"negativ"),"") -> negativ | E29: =IFERROR(IF((Planbilanz!E49/('Plan G+V'!F29-'Plan G+V'!F18))>0,(Planbilanz!E49/('Plan G+V'!F29-'Plan G+V'!F18)),"negativ"),"") -> 2.133827753 | F29: =IFERROR(IF((Planbilanz!F49/('Plan G+V'!H29-'Plan G+V'!H18))>0,(Planbilanz!F49/('Plan G+V'!H29-'Plan G+V'!H18)),"negativ"),"") -> 0.3070490825
A30: 20 | B30: Working Capital Ratio | D30: =IFERROR((Planbilanz!D27+Planbilanz!D28)/(Planbilanz!D47+Planbilanz!D48+Planbilanz!D50),"") -> 4.824082825 | E30: =IFERROR((Planbilanz!E27+Planbilanz!E28)/(Planbilanz!E47+Planbilanz!E48+Planbilanz!E50),"") -> 6.829164217 | F30: =IFERROR((Planbilanz!F27+Planbilanz!F28)/(Planbilanz!F47+Planbilanz!F48+Planbilanz!F50),"") -> 3.601314615
A31: 21 | B31: Umsatz | C31: Umsatzerlöse G+V Nr. 1 | D31: ='Plan G+V'!D10 -> 150000 | E31: ='Plan G+V'!F10 -> 488937.5 | F31: ='Plan G+V'!H10 -> 826625
A32: 22 | B32: Umsatzdifferenz zum Vorjahr | E32: =IFERROR((E31-D31)/D31,"") -> 2.259583333 | F32: =IFERROR((F31-E31)/E31,"") -> 0.6906557587
A33: 23 | B33: Umsatz pro Mitarbeiter | C33: Umsatzerlöse/Anzahl der Mitarbeiter | D33: =IFERROR('Plan G+V'!D10/SUMIF('Blatt 5 Pers'!D10:D24,"<>0",'Blatt 5 Pers'!$G$10:$G$24),"") -> 25000 | E33: =IFERROR('Plan G+V'!F10/SUMIF('Blatt 5 Pers'!E10:E24,"<>0",'Blatt 5 Pers'!$G$10:$G$24),"") -> 61117.1875 | F33: =IFERROR('Plan G+V'!H10/SUMIF('Blatt 5 Pers'!F10:F24,"<>0",'Blatt 5 Pers'!$G$10:$G$24),"") -> 103328.125

Sheet V+K Strukt
B1: Kennzahlen | D1: Übersicht | G1: Erfolgsrechnung
A3: ='Plan G+V'!C3 -> BigNet Netzwerklösungen GmbH
A5: Vermögens- u Kapitalstruktur
C7: Plan | E7: Plan | G7: Plan
C8: =Erfolgsrechn!E8 -> 2017 | E8: =Erfolgsrechn!G8 -> 2018 | G8: =Erfolgsrechn!I8 -> 2019
C9: TEUR | D9: % | E9: TEUR | F9: % | G9: TEUR | H9: %
L10: =$C$8 -> 2017 | M10: =$E$8 -> 2018 | N10: =$G$8 -> 2019
A11: 1 | B11: Sachanlangen | C11: =+Planbilanz!D19 -> 32762.66667 | D11: =IFERROR(C11/C$20,0) -> 0.3780420798 | E11: =+Planbilanz!E19 -> 28447.33333 | F11: =IFERROR(E11/E$20,0) -> 0.1778184684 | G11: =+Planbilanz!F19 -> 14292 | H11: =IFERROR(G11/G$20,0) -> 0.04478968738 | K11: =B11 -> Sachanlangen | L11: =C11 -> 32762.66667 | M11: =E11 -> 28447.33333 | N11: =G11 -> 14292
A12: 2 | B12: Finanzanlagen | C12: 0 | D12: 0 | E12: 0 | F12: 0 | G12: 0 | H12: 0 | K12: =B12 -> Finanzanlagen | L12: =C12 -> 0 | M12: =E12 -> 0 | N12: =G12 -> 0
A13: Anlagevermögen | C13: =SUM(C11:C12) -> 32762.66667 | D13: 0.3780420798 | E13: =SUM(E11:E12) -> 28447.33333 | F13: 0.1778184684 | G13: =SUM(G11:G12) -> 14292 | H13: 0.04478968738 | K13: =B14 -> Vorräte | L13: 3300 | M13: =E14 -> 10300 | N13: =G14 -> 300
A14: 3 | B14: Vorräte | C14: =+Planbilanz!D22+Planbilanz!D23 -> 3300 | D14: 0.03807806233 | E14: =+Planbilanz!E22+Planbilanz!E23 -> 10300 | F14: 0.06438319553 | G14: =+Planbilanz!F22+Planbilanz!F23 -> 300 | H14: 0.0009401697602 | K14: Forderungen aus L+L | L14: 27000 | M14: =E15 -> 88008.75 | N14: =G15 -> 148852.5
A15: 4 | B15: Forderungen aus L+L | C15: =+Planbilanz!D24 -> 27000 | D15: 0.3115477827 | E15: =+Planbilanz!E24 -> 88008.75 | F15: 0.5501247145 | G15: =+Planbilanz!F24 -> 148852.5 | H15: 0.4664887308 | K15: Liquide Mittel | L15: 23601.40704 | M15: =E16 -> 33223.54978 | N15: =G16 -> 155646.8096
A16: 5 | B16: Liquide Mittel | C16: =+Planbilanz!D26 -> 23601.40704 | D16: 0.2723320752 | E16: =+Planbilanz!E26 -> 33223.54978 | F16: 0.2076736216 | G16: =+Planbilanz!F26 -> 155646.8096 | H16: 0.4877814121 | K16: Sonst Forderungen | L16: 0 | M16: =E17 -> 0 | N16: =G17 -> 0
A17: 6 | B17: Sonst Forderungen | C17: =+Planbilanz!D25 -> 0 | D17: 0 | E17: =+Planbilanz!E25 -> 0 | F17: 0 | G17: =+Planbilanz!F25 -> 0 | H17: 0
A18: Umlaufvermögen | C18: =SUM(C14:C17) -> 53901.40704 | D18: 0.6219579202 | E18: =SUM(E14:E17) -> 131532.2998 | F18: 0.8221815316 | G18: =SUM(G14:G17) -> 304799.3096 | H18: 0.9552103126
A20: GESAMTVERMÖGEN | C20: =+C18+C13 -> 86664.0737 | D20: 1 | E20: =+E18+E13 -> 159979.6331 | F20: 1 | G20: =+G18+G13 -> 319091.3096 | H20: 1
L21: =$C$8 -> 2017 | M21: =$E$8 -> 2018 | N21: =$G$8 -> 2019
K22: Grundkapital | L22: =C23 -> 52500 | M22: =E23 -> 52500 | N22: =G23 -> 52500
A23: 7 | B23: Grundkapital | C23: =+Planbilanz!D38 -> 52500 | D23: =IFERROR(C23/C$36,0) -> 0.6057873552 | E23: =+Planbilanz!E38 -> 52500 | F23: =IFERROR(E23/E$36,0) -> 0.3281667733 | G23: =+Planbilanz!F38 -> 52500 | H23: =IFERROR(G23/G$36,0) -> 0.164529708 | K23: Stille Ges. | L23: =C26 -> 0 | M23: =E26 -> 35000 | N23: =G26 -> 0
A24: 8 | B24: Ergebnisvortrag | D24: 0 | E24: =+C25 -> -131509.3263 | F24: -0.8220379291 | G24: =+E25+E24 -> -77280.74716 | H24: -0.2421900718 | K24: Ges.Darlehen | L24: =C30 -> 75000 | M24: =E30 -> 50000 | N24: =G30 -> 0
A25: 9 | B25: Jahresergebnis | C25: =+Planbilanz!D41 -> -131509.3263 | D25: -1.517460704 | E25: =+Planbilanz!E41-E24 -> 54228.57914 | F25: 0.3389717684 | G25: =+Planbilanz!F41-G24 -> 259236.4883 | H25: 0.8124210234 | K25: Bankverb. | L25: =C31 -> 79500 | M25: =E31 -> 80500 | N25: =G31 -> 0
A26: 10 | B26: Einlagen stiller Gesellschafter | C26: =Planbilanz!D42 -> 0 | D26: 0 | E26: =Planbilanz!E42 -> 35000 | F26: 0.2187778489 | G26: =Planbilanz!F42 -> 0 | H26: 0 | K26: Verb. L+L | L26: =C32 -> 6862 | M26: =E32 -> 1102.96 | N26: =G32 -> 1337.416
A27: 11 | B27: Kapitalrücklagen | C27: =+Planbilanz!D39 -> 0 | D27: 0 | E27: =+Planbilanz!E39 -> 0 | F27: 0 | G27: =+Planbilanz!F39 -> 0 | H27: 0 | K27: So. Verb. | L27: =C33 -> 4311.4 | M27: =E33 -> 18157.42028 | N27: =G33 -> 83298.15243
A28: Eigenkapital | C28: =SUM(C23:C27) -> -79009.3263 | D28: -0.9116733489 | E28: =SUM(E23:E27) -> 10219.25284 | F28: 0.06387846154 | G28: =SUM(G23:G27) -> 234455.7411 | H28: 0.7347606597
A29: 12 | B29: Rückstellungen | D29: 0 | F29: 0 | H29: 0
A30: 13 | B30: Gesellschafterdarlehen | C30: =Planbilanz!D46 -> 75000 | D30: 0.8654105075 | E30: =Planbilanz!E46 -> 50000 | F30: 0.3125397841 | G30: =Planbilanz!F46 -> 0 | H30: 0
A31: 14 | B31: Bankverbindlichkeiten | C31: =+Planbilanz!D45 -> 79500 | D31: 0.9173351379 | E31: =+Planbilanz!E45 -> 80500 | F31: 0.5031890525 | G31: =+Planbilanz!F45 -> 0 | H31: 0
A32: 15 | B32: Verbindlichkeiten aus L+L | C32: =+Planbilanz!D47-C29 -> 6862 | D32: 0.07917929203 | E32: =+Planbilanz!E47-E29 -> 1102.96 | F32: 0.006894377606 | G32: =+Planbilanz!F47-G29 -> 1337.416 | H32: 0.004191326934
A33: 16 | B33: Sonstige Verbindlichkeiten | C33: =+Planbilanz!D48 -> 4311.4 | D33: 0.04974841149 | E33: =+Planbilanz!E48 -> 18157.42028 | F33: 0.1134983243 | G33: =+Planbilanz!F48 -> 83298.15243 | H33: 0.2610480133
A34: Verbindlichkeiten/Rückstellungen | C34: =SUM(C29:C33) -> 165673.4 | D34: 1.911673349 | E34: =SUM(E29:E33) -> 149760.3803 | F34: 0.9361215385 | G34: =SUM(G29:G33) -> 84635.56843 | H34: 0.2652393403
A36: GESAMTKAPITAL | C36: =+C34+C28 -> 86664.0737 | D36: 1 | E36: =+E34+E28 -> 159979.6331 | F36: 1 | G36: =+G34+G28 -> 319091.3096 | H36: =IFERROR(G36/G$36,0) -> 1
A38: Vermögens- u Kapitalstruktur - graphische Darstellung

Sheet Erfolgsrechn
B1: V./Kap.-Struktur | E1: Übersicht | H1: Deckblatt Plan-Ist Vergleich
A3: =Stammdaten!D5 -> BigNet Netzwerklösungen GmbH
A5: Erfolgsrechnung
E7: Plan | G7: Plan | I7: Plan
E8: =Planbilanz!D9 -> 2017 | G8: =Planbilanz!E9 -> 2018 | I8: =Planbilanz!F9 -> 2019
E9: TEUR | F9: % | G9: TEUR | H9: % | I9: TEUR | J9: %
A11: Umsatzerlöse | E11: =M12 -> 150000 | F11: 0.9646302251 | G11: 488937.5 | H11: 0.9812357324 | I11: 826625 | J11: 1.009464204
B12: Bestandsveränderungen | E12: =M14 -> 3000 | F12: 0.0192926045 | G12: 7000 | H12: 0.01404811479 | I12: -10000 | J12: -0.01221187605 | M12: ='Plan G+V'!D10 -> 150000 | N12: ='Plan G+V'!E10 -> 0.9646302251 | O12: ='Plan G+V'!F10 -> 488937.5 | P12: ='Plan G+V'!G10 -> 0.9812357324 | Q12: ='Plan G+V'!H10 -> 826625 | R12: ='Plan G+V'!J10 -> 1.009464204
B13: Aktivierte Eigenleistung | E13: 2500 | F13: 0.01607717042 | G13: 2350 | H13: 0.004716152823 | I13: 2250 | J13: 0.002747672111
A14: Betriebsleistung | E14: =SUM(E11:E13) -> 155500 | F14: 1 | G14: =SUM(G11:G13) -> 498287.5 | H14: 1 | I14: =SUM(I11:I13) -> 818875 | J14: 1 | M14: ='Plan G+V'!D11 -> 3000 | N14: ='Plan G+V'!E11 -> 0.0192926045 | O14: ='Plan G+V'!F11 -> 7000 | P14: ='Plan G+V'!G11 -> 0.01404811479 | Q14: ='Plan G+V'!H11 -> -10000 | R14: ='Plan G+V'!J11 -> -0.01221187605
M15: ='Plan G+V'!D12 -> 2500 | N15: ='Plan G+V'!E12 -> 0.01607717042 | O15: ='Plan G+V'!F12 -> 2350 | P15: ='Plan G+V'!G12 -> 0.004716152823 | Q15: ='Plan G+V'!H12 -> 2250 | R15: ='Plan G+V'!J12 -> 0.002747672111
B16: Sonstige betriebl. Erträge | E16: =M17 -> 0 | G16: =O17 -> 0 | I16: =Q17 -> 100 | M16: ='Plan G+V'!D13 -> 155500 | N16: ='Plan G+V'!E13 -> 1 | O16: ='Plan G+V'!F13 -> 498287.5 | P16: ='Plan G+V'!G13 -> 1 | Q16: ='Plan G+V'!H13 -> 818875 | R16: ='Plan G+V'!J13 -> 1 | T16: =E8 -> 2017 | U16: =G8 -> 2018 | V16: =I8 -> 2019
A17: Betriebsertrag | E17: =+E16+E14 -> 155500 | G17: =+G16+G14 -> 498287.5 | I17: =+I16+I14 -> 818975 | M17: ='Plan G+V'!D14 -> 0 | N17: ='Plan G+V'!E14 -> 0 | O17: ='Plan G+V'!F14 -> 0 | P17: ='Plan G+V'!G14 -> 0 | Q17: ='Plan G+V'!H14 -> 100 | R17: ='Plan G+V'!J14 -> 0.0001221187605 | S17: Ertrag | T17: =E17 -> 155500 | U17: =G17 -> 498287.5 | V17: =I17 -> 818975
M18: ='Plan G+V'!D15 -> 155500 | N18: ='Plan G+V'!E15 -> 1 | O18: ='Plan G+V'!F15 -> 498287.5 | P18: ='Plan G+V'!G15 -> 1 | Q18: ='Plan G+V'!H15 -> 818975 | R18: ='Plan G+V'!J15 -> 1.000122119 | S18: Aufwand | T18: =-E23 -> 282127.3333 | U18: =-G23 -> 435643.1333 | V18: =-I23 -> 503446.7373
B19: Wareneinsatz und Materialeinkauf | E19: =M19 -> -100 | F19: -0.0006430868167 | G19: -100 | H19: -0.0002006873542 | I19: -100 | J19: -0.0001221187605 | M19: ='Plan G+V'!D16 -> -100 | N19: ='Plan G+V'!E16 -> -0.0006430868167 | O19: ='Plan G+V'!F16 -> -100 | P19: ='Plan G+V'!G16 -> -0.0002006873542 | Q19: ='Plan G+V'!H16 -> -100 | R19: ='Plan G+V'!J16 -> -0.0001221187605 | S19: EBIT | T19: =E25 -> -126627.3333 | U19: =G25 -> 62644.36667 | V19: =I25 -> 315528.2627
B20: Personalaufwand | E20: -231420 | F20: -1.488231511 | G20: -374047.8 | H20: -0.7506666332 | I20: -431632.404 | J20: -0.5271041417 | M20: ='Plan G+V'!D17 -> -231420 | N20: ='Plan G+V'!E17 -> -1.488231511 | O20: ='Plan G+V'!F17 -> -374047.8 | P20: ='Plan G+V'!G17 -> -0.7506666332 | Q20: ='Plan G+V'!H17 -> -431632.404 | R20: ='Plan G+V'!J17 -> -0.5271041417 | S20: =A28 -> Finanzergebnis | T20: =E28 -> -4381.992965 | U20: =G28 -> -5333.882251 | V20: =I28 -> 778.2340478
B21: Abschreibung | E21: -12707.33333 | F21: -0.08171918542 | G21: -15955.33333 | H21: -0.03202033632 | I21: -16405.33333 | J21: -0.02003398972 | M21: ='Plan G+V'!D18 -> -12707.33333 | N21: ='Plan G+V'!E18 -> -0.08171918542 | O21: ='Plan G+V'!F18 -> -15955.33333 | P21: ='Plan G+V'!G18 -> -0.03202033632 | Q21: ='Plan G+V'!H18 -> -16405.33333 | R21: ='Plan G+V'!J18 -> -0.02003398972 | S21: U-Ergebnis | T21: =E29 -> -131009.3263 | U21: =G29 -> 57310.48442 | V21: =I29 -> 316306.4967
B22: Sonst. betriebl. Aufwand | E22: -37900 | F22: -0.2437299035 | G22: -45540 | H22: -0.0913930211 | I22: -55309 | J22: -0.06754266524 | M22: ='Plan G+V'!D19 -> -37900 | N22: ='Plan G+V'!E19 -> -0.2437299035 | O22: ='Plan G+V'!F19 -> -45540 | P22: ='Plan G+V'!G19 -> -0.0913930211 | Q22: ='Plan G+V'!H19 -> -55309 | R22: ='Plan G+V'!J19 -> -0.06754266524 | S22: Gewinn/Verlust | T22: =E32 -> -131509.3263 | U22: =G32 -> 54228.57914 | V22: =I32 -> 259236.4883
A23: Betriebsaufwand | E23: =SUM(E19:E22) -> -282127.3333 | F23: =IFERROR(E23/E14,0) -> -1.814323687 | G23: =SUM(G19:G22) -> -435643.1333 | H23: =IFERROR(G23/G14,0) -> -0.874280678 | I23: =SUM(I19:I22) -> -503446.7373 | J23: =IFERROR(I23/I14,0) -> -0.6148029154 | M23: ='Plan G+V'!D20 -> -282127.3333 | N23: ='Plan G+V'!E20 -> -1.814323687 | O23: ='Plan G+V'!F20 -> -435643.1333 | P23: ='Plan G+V'!G20 -> -0.874280678 | Q23: ='Plan G+V'!H20 -> -503446.7373 | R23: ='Plan G+V'!J20 -> -0.6148029154
M24: ='Plan G+V'!D21 -> -126627.3333 | N24: ='Plan G+V'!E21 -> -0.814323687 | O24: ='Plan G+V'!F21 -> 62644.36667 | P24: ='Plan G+V'!G21 -> 0.125719322 | Q24: ='Plan G+V'!H21 -> 315528.2627 | R24: ='Plan G+V'!J21 -> 0.3853192034
A25: Betriebsergebnis/EBIT | E25: =+E23+E17 -> -126627.3333 | F25: =IFERROR(E25/E14,0) -> -0.814323687 | G25: =+G23+G17 -> 62644.36667 | H25: =IFERROR(G25/G14,0) -> 0.125719322 | I25: =+I23+I17 -> 315528.2627 | J25: =IFERROR(I25/I14,0) -> 0.3853192034 | M25: ='Plan G+V'!D22 -> 118.0070352 | N25: ='Plan G+V'!E22 -> 0.000758887686 | O25: ='Plan G+V'!F22 -> 166.1177489 | P25: ='Plan G+V'!G22 -> 0.0003333773151 | Q25: ='Plan G+V'!H22 -> 778.2340478 | R25: ='Plan G+V'!J22 -> 0.0009503697729
B26: Zinserträge | E26: =M25 -> 118.0070352 | F26: 0.000758887686 | G26: 166.1177489 | H26: 0.0003333773151 | I26: 778.2340478 | J26: 0.0009503697729 | M26: ='Plan G+V'!D23 -> -4500 | N26: ='Plan G+V'!E23 -> -0.02893890675 | O26: ='Plan G+V'!F23 -> -5500 | P26: ='Plan G+V'!G23 -> -0.01103780448 | Q26: ='Plan G+V'!H23 -> 0 | R26: ='Plan G+V'!J23 -> 0
B27: Zinsaufwand | E27: -4500 | F27: -0.02893890675 | G27: -5500 | H27: -0.01103780448 | I27: 0 | J27: 0 | M27: ='Plan G+V'!D24 -> -4381.992965 | N27: ='Plan G+V'!E24 -> -0.02818001907 | O27: ='Plan G+V'!F24 -> -5333.882251 | P27: ='Plan G+V'!G24 -> -0.01070442717 | Q27: ='Plan G+V'!H24 -> 778.2340478 | R27: ='Plan G+V'!J24 -> 0.0009503697729
A28: Finanzergebnis | E28: =+E27+E26 -> -4381.992965 | F28: =N27 -> -0.02818001907 | G28: =+G27+G26 -> -5333.882251 | H28: =P27 -> -0.01070442717 | I28: =+I27+I26 -> 778.2340478 | J28: =R27 -> 0.0009503697729 | M28: ='Plan G+V'!D25 -> -131009.3263 | N28: ='Plan G+V'!E25 -> -0.8425037061 | O28: ='Plan G+V'!F25 -> 57310.48442 | P28: ='Plan G+V'!G25 -> 0.1150148948 | Q28: ='Plan G+V'!H25 -> 316306.4967 | R28: ='Plan G+V'!J25 -> 0.3862695732
A29: Unternehmensergebnis | E29: =+E28+E25 -> -131009.3263 | F29: =N28 -> -0.8425037061 | G29: =+G28+G25 -> 57310.48442 | H29: =P28 -> 0.1150148948 | I29: =+I28+I25 -> 316306.4967 | J29: =R28 -> 0.3862695732 | M29: ='Plan G+V'!D26 -> 0 | N29: ='Plan G+V'!E26 -> 0 | O29: ='Plan G+V'!F26 -> 0 | P29: ='Plan G+V'!G26 -> 0 | Q29: ='Plan G+V'!H26 -> 0 | R29: ='Plan G+V'!J26 -> 0
M30: ='Plan G+V'!D27 -> 0 | N30: ='Plan G+V'!E27 -> 0 | O30: ='Plan G+V'!F27 -> 0 | P30: ='Plan G+V'!G27 -> 0 | Q30: ='Plan G+V'!H27 -> 0 | R30: ='Plan G+V'!J27 -> 0
B31: Steuern vom Einkommen und Ertrag | E31: =M31 -> -500 | F31: =IFERROR(E31/E14,0) -> -0.003215434084 | G31: =O31 -> -3081.905276 | H31: =IFERROR(G31/G14,0) -> -0.006184994157 | I31: =Q31 -> -57070.00843 | J31: =IFERROR(I31/I14,0) -> -0.06969318691 | M31: ='Plan G+V'!D28 -> -500 | N31: ='Plan G+V'!E28 -> -0.003215434084 | O31: ='Plan G+V'!F28 -> -3081.905276 | P31: ='Plan G+V'!G28 -> -0.006184994157 | Q31: ='Plan G+V'!H28 -> -57070.00843 | R31: ='Plan G+V'!J28 -> -0.06969318691
A32: Unternehmensgewinn(-verlust) | E32: =+E31+E29 -> -131509.3263 | F32: =IFERROR(E32/E14,0) -> -0.8457191402 | G32: =+G31+G29 -> 54228.57914 | H32: =IFERROR(G32/G14,0) -> 0.1088299007 | I32: =+I31+I29 -> 259236.4883 | J32: =IFERROR(I32/I14,0) -> 0.3165763862 | M32: ='Plan G+V'!D29 -> -131509.3263 | N32: ='Plan G+V'!E29 -> -0.8457191402 | O32: ='Plan G+V'!F29 -> 54228.57914 | P32: ='Plan G+V'!G29 -> 0.1088299007 | Q32: ='Plan G+V'!H29 -> 259236.4883 | R32: ='Plan G+V'!J29 -> 0.3165763862
B33: Ausschüttungen | E33: =Liquidität!D20 -> 0 | G33: =Liquidität!E20 -> 0 | I33: =Liquidität!F20 -> 0 | M33: ='Plan G+V'!D30 -> 0 | N33: ='Plan G+V'!E30 -> 0 | O33: ='Plan G+V'!F30 -> 0 | P33: ='Plan G+V'!G30 -> 0 | Q33: ='Plan G+V'!H30 -> 0 | R33: ='Plan G+V'!J30 -> 0
B34: Bilanzgewinn/verlust | E34: =+E32+E33 -> -131509.3263 | G34: =+G32+E34+G33 -> -77280.74716 | I34: =+I32+G34+I33 -> 181955.7411 | M34: ='Plan G+V'!D32 -> 0 | N34: ='Plan G+V'!E32 -> 0 | O34: ='Plan G+V'!F32 -> 0 | P34: ='Plan G+V'!G32 -> 0 | Q34: ='Plan G+V'!H32 -> 0 | R34: ='Plan G+V'!J32 -> 0
M36: ='Plan G+V'!D33 -> 0 | N36: ='Plan G+V'!E33 -> 0 | O36: ='Plan G+V'!F33 -> 0 | P36: ='Plan G+V'!G33 -> 0 | Q36: ='Plan G+V'!H33 -> 0 | R36: ='Plan G+V'!J33 -> 0

Sheet Deckblatt Plan-Ist Vergleich
A1: Plan-Ist Vergleich
A2: von
A4: =Stammdaten!D5 -> BigNet Netzwerklösungen GmbH
C7: für die Geschäftsjahre | D7: =Stammdaten!$H$8 -> 2017 | E7: bis | F7: =D7+2 -> 2019
B11: Datum und Uhrzeit des Ausdrucks: | F11: =NOW() -> 2018-05-18T13:39:28.480

Sheet G + V IST
B1: =+Erfolgsrechn!H1 -> Deckblatt Plan-Ist Vergleich | D1: Übersicht | F1: =+Übersichtsblatt!G13 -> SOLL-IST-Vergleich G+V
B3: Name: | C3: ='Plan G+V'!C3 -> BigNet Netzwerklösungen GmbH | H3: =C3 -> BigNet Netzwerklösungen GmbH
C5: Gewinn- und Verlustrechnung IST
C6: für die ersten drei Geschäftsjahre
D8: Jahr 1 | E8: Jahr 2 | F8: Jahr 3 | H8: Jahr 1 | I8: Jahr 2 | J8: Jahr 3
A9: Nr | B9: Posten | C9: Anmerkung | D9: ='Plan G+V'!D9 -> 2017 | E9: =IF(D9>2001,D9+1,"") -> 2018 | F9: =IF(E9="","",E9+1) -> 2019 | H9: =D9 -> 2017 | I9: =E9 -> 2018 | J9: =F9 -> 2019
A10: 1 | B10: Umsatzerlöse | H10: =IF(D$13=0,0,+D10/D$13) -> 0 | I10: 0 | J10: 0
A11: 2 | B11: (+/-) Bestandsveränderungen | H11: 0 | I11: 0 | J11: 0
A12: 3 | B12: Aktivierte Eigenleistungen | H12: 0 | I12: 0 | J12: 0
A13: 4 | B13: Betriebsleistung | D13: =SUM(D10:D12) -> 0 | E13: =SUM(E10:E12) -> 0 | F13: =SUM(F10:F12) -> 0 | H13: 0 | I13: 0 | J13: 0
A14: 5 | B14: Sonstige betriebl. Erträge | H14: 0 | I14: 0 | J14: 0
A15: 6 | B15: Betriebsertrag | D15: =SUM(D13:D14) -> 0 | E15: =SUM(E13:E14) -> 0 | F15: =SUM(F13:F14) -> 0 | H15: 0 | I15: 0 | J15: 0
A16: 7 | B16: (-) Wareneinsatz und Materialeinkauf | H16: =IF(D$13=0,0,+D16/D$13) -> 0 | I16: =IF(E$13=0,0,+E16/E$13) -> 0 | J16: =IF(F$13=0,0,+F16/F$13) -> 0
A17: 8 | B17: (-) Personalaufwand | H17: 0 | I17: 0 | J17: 0
A18: 9 | B18: (-) Abschreibung | H18: 0 | I18: 0 | J18: 0
A19: 10 | B19: (-) Sonst. betriebl. Aufwand | H19: 0 | I19: 0 | J19: 0
A20: 11 | B20: Betriebsaufwand | D20: =SUM(D16:D19) -> 0 | E20: =SUM(E16:E19) -> 0 | F20: =SUM(F16:F19) -> 0 | H20: 0 | I20: 0 | J20: 0
A21: 12 | B21: Betriebsergebnis | D21: =D15+D20 -> 0 | E21: =E15+E20 -> 0 | F21: =F15+F20 -> 0 | H21: 0 | I21: 0 | J21: 0
A22: 13 | B22: (+) Zinserträge | H22: 0 | I22: 0 | J22: 0
A23: 14 | B23: (-) Zinsaufwand | H23: 0 | I23: 0 | J23: 0
A24: 15 | B24: Finanzergebnis | D24: =SUM(D22:D23) -> 0 | E24: =SUM(E22:E23) -> 0 | F24: =SUM(F22:F23) -> 0 | H24: 0 | I24: 0 | J24: 0
A25: 16 | B25: Ergebnis | D25: =D21+D24 -> 0 | E25: =E21+E24 -> 0 | F25: =F21+F24 -> 0 | H25: 0 | I25: 0 | J25: 0
A26: 17 | B26: (+) a.o.Erträge | H26: 0 | I26: 0 | J26: 0
A27: 18 | B27: (-) a.o.Aufwendungen | H27: 0 | I27: 0 | J27: 0
A28: 19 | B28: (-) Steuern vom Einkommen und Ertrag | H28: 0 | I28: 0 | J28: 0
A29: 20 | B29: Gewinn/Verlust | D29: =SUM(D25:D28) -> 0 | E29: =SUM(E25:E28) -> 0 | F29: =SUM(F25:F28) -> 0 | H29: 0 | I29: 0 | J29: 0
A30: 21 | B30: Bilanzgewinn/verlust | D30: =+D29 -> 0 | E30: =+D30+E29 -> 0 | F30: =+E30+F29 -> 0

Sheet Soll-IST G+V
C1: =+Übersichtsblatt!G5 -> Gewinn- und Verlustrechung IST | G1: Übersicht | I1: =+Übersichtsblatt!G7 -> Bilanz IST
A2: ='Plan G+V'!C3 -> BigNet Netzwerklösungen GmbH | C2: Plan-Ist Vergleich Gewinn- und Verlustrechnung | P2: Plan-Ist Vergleich in Prozent der Betriebsleistung
C4: ='Plan G+V'!D9 -> 2017 | G4: ='Plan G+V'!F9 -> 2018 | K4: ='Plan G+V'!H9 -> 2019 | P4: =C4 -> 2017 | S4: =G4 -> 2018 | V4: =K4 -> 2019
A5: Nr | B5: Posten | C5: Soll | D5: Ist | E5: Abweichung | F5: % | G5: Soll | H5: Ist | I5: Abweichung | J5: % | K5: Soll | L5: Ist | M5: Abweichung | N5: % | P5: Soll | Q5: Ist | R5: Abweichung % | S5: =P5 -> Soll | T5: =Q5 -> Ist | U5: Abweichung % | V5: =S5 -> Soll | W5: =T5 -> Ist | X5: Abweichung %
A6: 1 | B6: Umsatzerlöse | C6: ='Plan G+V'!D10 -> 150000 | D6: ='G + V IST'!D10 -> 0 | E6: =D6-C6 -> -150000 | F6: =IF(C6=0,"",IF((D6-C6)/C6>1,">100%",(D6-C6)/C6)) -> -1 | G6: ='Plan G+V'!F10 -> 488937.5 | H6: ='G + V IST'!E10 -> 0 | I6: =H6-G6 -> -488937.5 | J6: =IF(G6=0,"",IF((H6-G6)/G6>1,">100%",(H6-G6)/G6)) -> -1 | K6: ='Plan G+V'!H10 -> 826625 | L6: ='G + V IST'!F10 -> 0 | M6: =L6-K6 -> -826625 | N6: =IF(K6=0,"",IF((L6-K6)/K6>1,">100%",(L6-K6)/K6)) -> -1 | P6: ='Plan G+V'!E10 -> 0.9646302251 | Q6: ='G + V IST'!H10 -> 0 | R6: =IF(P6=0,"",IF((Q6-P6)/P6>1,">100%",(Q6-P6)/P6)) -> -1 | S6: ='Plan G+V'!G10 -> 0.9812357324 | T6: ='G + V IST'!I10 -> 0 | U6: =IF(S6=0,"",IF((T6-S6)/S6>1,">100%",(T6-S6)/S6)) -> -1 | V6: ='Plan G+V'!J10 -> 1.009464204 | W6: ='G + V IST'!J10 -> 0 | X6: =IF(V6=0,"",IF((W6-V6)/V6>1,">100%",(W6-V6)/V6)) -> -1
A7: 2 | B7: (+/-) Bestandsveränderungen | C7: ='Plan G+V'!D11 -> 3000 | D7: ='G + V IST'!D11 -> 0 | E7: =D7-C7 -> -3000 | F7: =IF(C7=0,"",IF((D7-C7)/C7>1,">100%",(D7-C7)/C7)) -> -1 | G7: ='Plan G+V'!F11 -> 7000 | H7: ='G + V IST'!E11 -> 0 | I7: =H7-G7 -> -7000 | J7: =IF(G7=0,"",IF((H7-G7)/G7>1,">100%",(H7-G7)/G7)) -> -1 | K7: ='Plan G+V'!H11 -> -10000 | L7: ='G + V IST'!F11 -> 0 | M7: 10000 | N7: =IF(K7=0,"",IF((L7-K7)/K7>1,">100%",(L7-K7)/K7)) -> -1 | P7: ='Plan G+V'!E11 -> 0.0192926045 | Q7: ='G + V IST'!H11 -> 0 | R7: =IF(P7=0,"",IF((Q7-P7)/P7>1,">100%",(Q7-P7)/P7)) -> -1 | S7: ='Plan G+V'!G11 -> 0.01404811479 | T7: ='G + V IST'!I11 -> 0 | U7: =IF(S7=0,"",IF((T7-S7)/S7>1,">100%",(T7-S7)/S7)) -> -1 | V7: ='Plan G+V'!J11 -> -0.01221187605 | W7: ='G + V IST'!J11 -> 0 | X7: =IF(V7=0,"",IF((W7-V7)/V7>1,">100%",(W7-V7)/V7)) -> -1
A8: 3 | B8: Aktivierte Eigenleistungen | C8: ='Plan G+V'!D12 -> 2500 | D8: ='G + V IST'!D12 -> 0 | E8: -2500 | F8: -1 | G8: ='Plan G+V'!F12 -> 2350 | H8: ='G + V IST'!E12 -> 0 | I8: =H8-G8 -> -2350 | J8: =IF(G8=0,"",IF((H8-G8)/G8>1,">100%",(H8-G8)/G8)) -> -1 | K8: ='Plan G+V'!H12 -> 2250 | L8: ='G + V IST'!F12 -> 0 | M8: -2250 | N8: -1 | P8: ='Plan G+V'!E12 -> 0.01607717042 | Q8: ='G + V IST'!H12 -> 0 | R8: -1 | S8: ='Plan G+V'!G12 -> 0.004716152823 | T8: ='G + V IST'!I12 -> 0 | U8: -1 | V8: ='Plan G+V'!J12 -> 0.002747672111 | W8: ='G + V IST'!J12 -> 0 | X8: -1
A9: 4 | B9: Betriebsleistung | C9: =SUM(C6:C8) -> 155500 | D9: =SUM(D6:D8) -> 0 | E9: -155500 | F9: -1 | G9: =SUM(G6:G8) -> 498287.5 | H9: =SUM(H6:H8) -> 0 | I9: -498287.5 | J9: -1 | K9: =SUM(K6:K8) -> 818875 | L9: =SUM(L6:L8) -> 0 | M9: -818875 | N9: -1 | P9: ='Plan G+V'!E13 -> 1 | Q9: ='G + V IST'!H13 -> 0 | R9: -1 | S9: ='Plan G+V'!G13 -> 1 | T9: ='G + V IST'!I13 -> 0 | U9: -1 | V9: ='Plan G+V'!J13 -> 1 | W9: ='G + V IST'!J13 -> 0 | X9: -1
A10: 5 | B10: Sonstige betriebl. Erträge | C10: ='Plan G+V'!D14 -> 0 | D10: ='G + V IST'!D14 -> 0 | E10: 0 | G10: ='Plan G+V'!F14 -> 0 | H10: ='G + V IST'!E14 -> 0 | I10: 0 | K10: ='Plan G+V'!H14 -> 100 | L10: ='G + V IST'!F14 -> 0 | M10: -100 | N10: -1 | P10: ='Plan G+V'!E14 -> 0 | Q10: ='G + V IST'!H14 -> 0 | S10: ='Plan G+V'!G14 -> 0 | T10: ='G + V IST'!I14 -> 0 | V10: ='Plan G+V'!J14 -> 0.0001221187605 | W10: ='G + V IST'!J14 -> 0 | X10: -1
A11: 6 | B11: Betriebsertrag | C11: =SUM(C9:C10) -> 155500 | D11: =SUM(D9:D10) -> 0 | E11: -155500 | F11: -1 | G11: =SUM(G9:G10) -> 498287.5 | H11: =SUM(H9:H10) -> 0 | I11: -498287.5 | J11: -1 | K11: =SUM(K9:K10) -> 818975 | L11: =SUM(L9:L10) -> 0 | M11: -818975 | N11: -1 | P11: ='Plan G+V'!E15 -> 1 | Q11: ='G + V IST'!H15 -> 0 | R11: -1 | S11: ='Plan G+V'!G15 -> 1 | T11: ='G + V IST'!I15 -> 0 | U11: -1 | V11: ='Plan G+V'!J15 -> 1.000122119 | W11: ='G + V IST'!J15 -> 0 | X11: -1
A12: 7 | B12: (-) Wareneinsatz und Materialeinkauf | C12: ='Plan G+V'!D16 -> -100 | D12: ='G + V IST'!D16 -> 0 | E12: 100 | F12: -1 | G12: ='Plan G+V'!F16 -> -100 | H12: ='G + V IST'!E16 -> 0 | I12: 100 | J12: -1 | K12: ='Plan G+V'!H16 -> -100 | L12: ='G + V IST'!F16 -> 0 | M12: 100 | N12: -1 | P12: ='Plan G+V'!E16 -> -0.0006430868167 | Q12: ='G + V IST'!H16 -> 0 | R12: -1 | S12: ='Plan G+V'!G16 -> -0.0002006873542 | T12: ='G + V IST'!I16 -> 0 | U12: -1 | V12: ='Plan G+V'!J16 -> -0.0001221187605 | W12: ='G + V IST'!J16 -> 0 | X12: -1
A13: 8 | B13: (-) Personalaufwand | C13: ='Plan G+V'!D17 -> -231420 | D13: ='G + V IST'!D17 -> 0 | E13: 231420 | F13: -1 | G13: ='Plan G+V'!F17 -> -374047.8 | H13: ='G + V IST'!E17 -> 0 | I13: 374047.8 | J13: -1 | K13: ='Plan G+V'!H17 -> -431632.404 | L13: ='G + V IST'!F17 -> 0 | M13: 431632.404 | N13: -1 | P13: ='Plan G+V'!E17 -> -1.488231511 | Q13: ='G + V IST'!H17 -> 0 | R13: -1 | S13: ='Plan G+V'!G17 -> -0.7506666332 | T13: ='G + V IST'!I17 -> 0 | U13: -1 | V13: ='Plan G+V'!J17 -> -0.5271041417 | W13: ='G + V IST'!J17 -> 0 | X13: -1
A14: 9 | B14: (-) Abschreibung | C14: ='Plan G+V'!D18 -> -12707.33333 | D14: ='G + V IST'!D18 -> 0 | E14: 12707.33333 | F14: -1 | G14: ='Plan G+V'!F18 -> -15955.33333 | H14: ='G + V IST'!E18 -> 0 | I14: 15955.33333 | J14: -1 | K14: ='Plan G+V'!H18 -> -16405.33333 | L14: ='G + V IST'!F18 -> 0 | M14: 16405.33333 | N14: -1 | P14: ='Plan G+V'!E18 -> -0.08171918542 | Q14: ='G + V IST'!H18 -> 0 | R14: -1 | S14: ='Plan G+V'!G18 -> -0.03202033632 | T14: ='G + V IST'!I18 -> 0 | U14: -1 | V14: ='Plan G+V'!J18 -> -0.02003398972 | W14: ='G + V IST'!J18 -> 0 | X14: -1
A15: 10 | B15: (-) Sonst. betriebl. Aufwand | C15: ='Plan G+V'!D19 -> -37900 | D15: ='G + V IST'!D19 -> 0 | E15: 37900 | F15: -1 | G15: ='Plan G+V'!F19 -> -45540 | H15: ='G + V IST'!E19 -> 0 | I15: 45540 | J15: -1 | K15: ='Plan G+V'!H19 -> -55309 | L15: ='G + V IST'!F19 -> 0 | M15: 55309 | N15: -1 | P15: ='Plan G+V'!E19 -> -0.2437299035 | Q15: ='G + V IST'!H19 -> 0 | R15: -1 | S15: ='Plan G+V'!G19 -> -0.0913930211 | T15: ='G + V IST'!I19 -> 0 | U15: -1 | V15: ='Plan G+V'!J19 -> -0.06754266524 | W15: ='G + V IST'!J19 -> 0 | X15: -1
A16: 11 | B16: Betriebsaufwand | C16: =SUM(C12:C15) -> -282127.3333 | D16: =SUM(D12:D15) -> 0 | E16: 282127.3333 | F16: -1 | G16: =SUM(G12:G15) -> -435643.1333 | H16: =SUM(H12:H15) -> 0 | I16: 435643.1333 | J16: -1 | K16: =SUM(K12:K15) -> -503446.7373 | L16: =SUM(L12:L15) -> 0 | M16: 503446.7373 | N16: -1 | P16: ='Plan G+V'!E20 -> -1.814323687 | Q16: ='G + V IST'!H20 -> 0 | R16: -1 | S16: ='Plan G+V'!G20 -> -0.874280678 | T16: ='G + V IST'!I20 -> 0 | U16: -1 | V16: ='Plan G+V'!J20 -> -0.6148029154 | W16: ='G + V IST'!J20 -> 0 | X16: -1
A17: 12 | B17: Betriebsergebnis | C17: =C11+C16 -> -126627.3333 | D17: =D11+D16 -> 0 | E17: 126627.3333 | F17: -1 | G17: =G11+G16 -> 62644.36667 | H17: =H11+H16 -> 0 | I17: -62644.36667 | J17: -1 | K17: =K11+K16 -> 315528.2627 | L17: =L11+L16 -> 0 | M17: -315528.2627 | N17: -1 | P17: ='Plan G+V'!E21 -> -0.814323687 | Q17: ='G + V IST'!H21 -> 0 | R17: -1 | S17: ='Plan G+V'!G21 -> 0.125719322 | T17: ='G + V IST'!I21 -> 0 | U17: -1 | V17: ='Plan G+V'!J21 -> 0.3853192034 | W17: ='G + V IST'!J21 -> 0 | X17: -1
A18: 13 | B18: (+) Zinserträge | C18: ='Plan G+V'!D22 -> 118.0070352 | D18: ='G + V IST'!D22 -> 0 | E18: -118.0070352 | F18: -1 | G18: ='Plan G+V'!F22 -> 166.1177489 | H18: ='G + V IST'!E22 -> 0 | I18: -166.1177489 | J18: -1 | K18: ='Plan G+V'!H22 -> 778.2340478 | L18: ='G + V IST'!F22 -> 0 | M18: -778.2340478 | N18: -1 | P18: ='Plan G+V'!E22 -> 0.000758887686 | Q18: ='G + V IST'!H22 -> 0 | R18: -1 | S18: ='Plan G+V'!G22 -> 0.0003333773151 | T18: ='G + V IST'!I22 -> 0 | U18: -1 | V18: ='Plan G+V'!J22 -> 0.0009503697729 | W18: ='G + V IST'!J22 -> 0 | X18: -1
A19: 14 | B19: (-) Zinsaufwand | C19: ='Plan G+V'!D23 -> -4500 | D19: ='G + V IST'!D23 -> 0 | E19: 4500 | F19: -1 | G19: ='Plan G+V'!F23 -> -5500 | H19: ='G + V IST'!E23 -> 0 | I19: 5500 | J19: -1 | K19: ='Plan G+V'!H23 -> 0 | L19: ='G + V IST'!F23 -> 0 | M19: 0 | P19: ='Plan G+V'!E23 -> -0.02893890675 | Q19: ='G + V IST'!H23 -> 0 | R19: -1 | S19: ='Plan G+V'!G23 -> -0.01103780448 | T19: ='G + V IST'!I23 -> 0 | U19: -1 | V19: ='Plan G+V'!J23 -> 0 | W19: ='G + V IST'!J23 -> 0
A20: 15 | B20: Finanzergebnis | C20: =SUM(C18:C19) -> -4381.992965 | D20: =SUM(D18:D19) -> 0 | E20: 4381.992965 | F20: -1 | G20: =SUM(G18:G19) -> -5333.882251 | H20: =SUM(H18:H19) -> 0 | I20: 5333.882251 | J20: -1 | K20: =SUM(K18:K19) -> 778.2340478 | L20: =SUM(L18:L19) -> 0 | M20: -778.2340478 | N20: -1 | P20: ='Plan G+V'!E24 -> -0.02818001907 | Q20: ='G + V IST'!H24 -> 0 | R20: -1 | S20: ='Plan G+V'!G24 -> -0.01070442717 | T20: ='G + V IST'!I24 -> 0 | U20: -1 | V20: ='Plan G+V'!J24 -> 0.0009503697729 | W20: ='G + V IST'!J24 -> 0 | X20: -1
A21: 16 | B21: Ergebnis | C21: =C17+C20 -> -131009.3263 | D21: =D17+D20 -> 0 | E21: 131009.3263 | F21: -1 | G21: =G17+G20 -> 57310.48442 | H21: =H17+H20 -> 0 | I21: -57310.48442 | J21: -1 | K21: =K17+K20 -> 316306.4967 | L21: =L17+L20 -> 0 | M21: -316306.4967 | N21: -1 | P21: ='Plan G+V'!E25 -> -0.8425037061 | Q21: ='G + V IST'!H25 -> 0 | R21: -1 | S21: ='Plan G+V'!G25 -> 0.1150148948 | T21: ='G + V IST'!I25 -> 0 | U21: -1 | V21: ='Plan G+V'!J25 -> 0.3862695732 | W21: ='G + V IST'!J25 -> 0 | X21: -1
A22: 17 | B22: (+) a.o.Erträge | C22: ='Plan G+V'!D26 -> 0 | D22: ='G + V IST'!D26 -> 0 | E22: 0 | G22: ='Plan G+V'!F26 -> 0 | H22: ='G + V IST'!E26 -> 0 | I22: 0 | K22: ='Plan G+V'!H26 -> 0 | L22: ='G + V IST'!F26 -> 0 | M22: 0 | P22: ='Plan G+V'!E26 -> 0 | Q22: ='G + V IST'!H26 -> 0 | S22: ='Plan G+V'!G26 -> 0 | T22: ='G + V IST'!I26 -> 0 | V22: ='Plan G+V'!J26 -> 0 | W22: ='G + V IST'!J26 -> 0
A23: 18 | B23: (-) a.o.Aufwendungen | C23: ='Plan G+V'!D27 -> 0 | D23: ='G + V IST'!D27 -> 0 | E23: 0 | G23: ='Plan G+V'!F27 -> 0 | H23: ='G + V IST'!E27 -> 0 | I23: 0 | K23: ='Plan G+V'!H27 -> 0 | L23: ='G + V IST'!F27 -> 0 | M23: 0 | P23: ='Plan G+V'!E27 -> 0 | Q23: ='G + V IST'!H27 -> 0 | S23: ='Plan G+V'!G27 -> 0 | T23: ='G + V IST'!I27 -> 0 | V23: ='Plan G+V'!J27 -> 0 | W23: ='G + V IST'!J27 -> 0
A24: 19 | B24: (-) Steuern vom Einkommen und Ertrag | C24: ='Plan G+V'!D28 -> -500 | D24: ='G + V IST'!D28 -> 0 | E24: 500 | F24: -1 | G24: ='Plan G+V'!F28 -> -3081.905276 | H24: ='G + V IST'!E28 -> 0 | I24: 3081.905276 | J24: -1 | K24: ='Plan G+V'!H28 -> -57070.00843 | L24: ='G + V IST'!F28 -> 0 | M24: 57070.00843 | N24: -1 | P24: ='Plan G+V'!E28 -> -0.003215434084 | Q24: ='G + V IST'!H28 -> 0 | R24: -1 | S24: ='Plan G+V'!G28 -> -0.006184994157 | T24: ='G + V IST'!I28 -> 0 | U24: -1 | V24: ='Plan G+V'!J28 -> -0.06969318691 | W24: ='G + V IST'!J28 -> 0 | X24: -1
A25: 20 | B25: Gewinn/Verlust | C25: =SUM(C21:C24) -> -131509.3263 | D25: =SUM(D21:D24) -> 0 | E25: 131509.3263 | F25: -1 | G25: =SUM(G21:G24) -> 54228.57914 | H25: =SUM(H21:H24) -> 0 | I25: -54228.57914 | J25: -1 | K25: =SUM(K21:K24) -> 259236.4883 | L25: =SUM(L21:L24) -> 0 | M25: -259236.4883 | N25: -1 | P25: ='Plan G+V'!E29 -> -0.8457191402 | Q25: ='G + V IST'!H29 -> 0 | R25: -1 | S25: ='Plan G+V'!G29 -> 0.1088299007 | T25: ='G + V IST'!I29 -> 0 | U25: -1 | V25: ='Plan G+V'!J29 -> 0.3165763862 | W25: ='G + V IST'!J29 -> 0 | X25: -1
A26: 21 | B26: Bilanzgewinn/verlust | C26: =+C25 -> -131509.3263 | D26: =+D25 -> 0 | E26: 131509.3263 | F26: -1 | G26: =+C26+G25 -> -77280.74716 | H26: =+D26+H25 -> 0 | I26: 77280.74716 | J26: -1 | K26: =+G26+K25 -> 181955.7411 | L26: =+H26+L25 -> 0 | M26: -181955.7411 | N26: -1

Sheet Bilanz IST
B1: =+Übersichtsblatt!G13 -> SOLL-IST-Vergleich G+V | D1: Übersicht | F1: =+Übersichtsblatt!G15 -> SOLL-IST-Vergleich Bilanz
C3: ='Plan G+V'!C3 -> BigNet Netzwerklösungen GmbH
A5: Bilanzwerte IST 1/2
A6: für die ersten drei Geschäftsjahre
D8: Jahr 1 | E8: Jahr 2 | F8: Jahr 3
A9: Nr | B9: Posten | C9: Anmerkung | D9: ='Plan G+V'!D9 -> 2017 | E9: ='Plan G+V'!F9 -> 2018 | F9: ='Plan G+V'!H9 -> 2019
A10: Aktiva
B11: A. Anlagevermögen
A12: 1 | B12: I. Immaterielle Vermögensgegenstände
A13: 2 | B13: II. Sachanlagen:
A14: 3 | B14: 1. Grundstücke, Gebäude
A15: 4 | B15: 2. Technische Anlagen und Maschinen
A16: 5 | B16: 3. Betriebs- und Geschäftsausstattung
A17: 6 | B17: 4. Andere Anlagen
A18: 7 | B18: 5. Aktivierte Eigenleistungen
A19: Summe Anlagevermögen | D19: =SUM(D12:D18) -> 0 | E19: =SUM(E12:E18) -> 0 | F19: =SUM(F12:F18) -> 0
B20: B. Umlaufvermögen
A21: 8 | B21: I. Vorräte:
A22: 9 | B22: 1. Waren/Material
A23: 10 | B23: 2. Halbfertige und fertige Erzeugnisse
A24: 11 | B24: II. Forderungen
A25: 12 | B25: III. Sonstige Forderungen
A26: 13 | B26: IV. Kassa, Guthaben
A27: Summe Umlaufvermögen | D27: =SUM(D21:D26) -> 0 | E27: =SUM(E21:E26) -> 0 | F27: =SUM(F21:F26) -> 0
B28: C. Rechnungsabgrenzungsposten
A29: Summe Aktiva | C29: Summe Aktiva muß gleich der Summe der Passiva sein! | D29: =+D19+D27+D28 -> 0 | E29: =+E19+E27+E28 -> 0 | F29: =+F19+F27+F28 -> 0
A32: Bilanzwerte IST 2/2
A33: für die ersten drei Geschäftsjahre
D35: Jahr 1 | E35: Jahr 2 | F35: Jahr 3
A36: Nr | B36: Posten | C36: Anmerkung | D36: =D9 -> 2017 | E36: =E9 -> 2018 | F36: =F9 -> 2019
A37: Passiva
B38: A. Eigenkapital
A39: 14 | B39: I. Nennkapital (Grund-, Stammkapital)
A40: 15 | B40: II. Kapitalrücklagen
A41: 16 | B41: III. Gewinnrücklagen
A42: 17 | B42: IV. Bilanzgewinn/Bilanzverlust
A43: 18 | B43: V. Einlagen stiller Gesellschafter
A44: Summe Eigenkapital | D44: =SUM(D39:D43) -> 0 | E44: =SUM(E39:E43) -> 0 | F44: =SUM(F39:F43) -> 0
B45: B. Rückstellungen | C45: Gesamtsumme der Rückstellungen
B46: C. Verbindlichkeiten
A47: 19 | B47: 1. Gegenüber Kreditinstituten
A48: 20 | B48: 2. Gesellschafterdarlehen
A49: 21 | B49: 3. Aus Lieferungen/Leistungen
A50: 22 | B50: 4. Sonstige Verbindlichkeiten (Steuern, etc)
A51: Summe Verbindlichkeiten | D51: =SUM(D47:D50) -> 0 | E51: =SUM(E47:E50) -> 0 | F51: =SUM(F47:F50) -> 0
B52: D. Rechnungsabgrenzungsposten
A53: Summe Passiva | D53: =+D52+D51+D44+D45 -> 0 | E53: =+E52+E51+E44+E45 -> 0 | F53: =+F52+F51+F44+F45 -> 0
A55: Check: Sind Aktiva und Passiva Summengleich? | D55: =IF(D29>D53+1,"Aktiva sind höher als Passiva!",IF(D29<D53-1,"Passiva sind höher als Aktiva!","OK")) -> OK | E55: =IF(E29>E53+1,"Aktiva sind höher als Passiva!",IF(E29<E53-1,"Passiva sind höher als Aktiva!","OK")) -> OK | F55: =IF(F29>F53+1,"Aktiva sind höher als Passiva!",IF(F29<F53-1,"Passiva sind höher als Aktiva!","OK")) -> OK
B56: Betrag | D56: =+D29-D53 -> 0 | E56: =+E29-E53 -> 0 | F56: =+F29-F53 -> 0

Sheet Soll-Ist Bilanz
B1: Überischt
A2: ='Plan G+V'!C3 -> BigNet Netzwerklösungen GmbH | C2: Bilanz SOLL-IST-Vergleich 1/2
C4: ='Plan G+V'!D9 -> 2017 | G4: ='Plan G+V'!F9 -> 2018 | K4: ='Plan G+V'!H9 -> 2019
A5: Nr | B5: Aktiva | C5: Soll | D5: Ist | E5: Abweichung | F5: % | G5: Soll | H5: Ist | I5: Abweichung | J5: % | K5: Soll | L5: Ist | M5: Abweichung | N5: %
B6: A. Anlagevermögen
A7: 1 | B7: I. Immaterielle Vermögensgegenstände | C7: =Planbilanz!D12 -> 2200 | D7: ='Bilanz IST'!D12 -> 0 | E7: =D7-C7 -> -2200 | F7: =IF(C7=0,"",IF((D7-C7)/C7>1,">100%",(D7-C7)/C7)) -> -1 | G7: =Planbilanz!E12 -> 1833.333333 | H7: ='Bilanz IST'!E12 -> 0 | I7: =H7-G7 -> -1833.333333 | J7: =IF(G7=0,"",IF((H7-G7)/G7>1,">100%",(H7-G7)/G7)) -> -1 | K7: =Planbilanz!F12 -> 366.6666667 | L7: ='Bilanz IST'!F12 -> 0 | M7: =L7-K7 -> -366.6666667 | N7: =IF(K7=0,"",IF((L7-K7)/K7>1,">100%",(L7-K7)/K7)) -> -1
A8: 2 | B8: II. Sachanlagen: | C8: =Planbilanz!D13 -> 0 | D8: ='Bilanz IST'!D13 -> 0 | E8: =D8-C8 -> 0 | F8: =IF(C8=0,"",IF((D8-C8)/C8>1,">100%",(D8-C8)/C8)) ->  | G8: =Planbilanz!E13 -> 0 | H8: ='Bilanz IST'!E13 -> 0 | I8: 0 | K8: =Planbilanz!F13 -> 0 | L8: ='Bilanz IST'!F13 -> 0 | M8: 0 | N8: =IF(K8=0,"",IF((L8-K8)/K8>1,">100%",(L8-K8)/K8)) -> 
A9: 3 | B9: 1. Grundstücke, Gebäude | C9: =Planbilanz!D14 -> 0 | D9: ='Bilanz IST'!D14 -> 0 | E9: 0 | G9: =Planbilanz!E14 -> 0 | H9: ='Bilanz IST'!E14 -> 0 | I9: 0 | K9: =Planbilanz!F14 -> 0 | L9: ='Bilanz IST'!F14 -> 0 | M9: 0
A10: 4 | B10: 2. Technische Anlagen und Maschinen | C10: =Planbilanz!D15 -> 0 | D10: ='Bilanz IST'!D15 -> 0 | E10: 0 | G10: =Planbilanz!E15 -> 0 | H10: ='Bilanz IST'!E15 -> 0 | I10: 0 | K10: =Planbilanz!F15 -> 0 | L10: ='Bilanz IST'!F15 -> 0 | M10: 0
A11: 5 | B11: 3. Betriebs- und Geschäftsausstattung | C11: =Planbilanz!D16 -> 12696 | D11: ='Bilanz IST'!D16 -> 0 | E11: -12696 | F11: -1 | G11: =Planbilanz!E16 -> 11434 | H11: ='Bilanz IST'!E16 -> 0 | I11: -11434 | J11: -1 | K11: =Planbilanz!F16 -> 7782 | L11: ='Bilanz IST'!F16 -> 0 | M11: -7782 | N11: -1
A12: 6 | B12: 4. Andere Anlagen | C12: =Planbilanz!D17 -> 15866.66667 | D12: ='Bilanz IST'!D17 -> 0 | E12: -15866.66667 | F12: -1 | G12: =Planbilanz!E17 -> 11800 | H12: ='Bilanz IST'!E17 -> 0 | I12: -11800 | J12: -1 | K12: =Planbilanz!F17 -> 1933.333333 | L12: ='Bilanz IST'!F17 -> 0 | M12: -1933.333333 | N12: -1
A13: 7 | B13: 5. Aktivierte Eigenleistungen | C13: =Planbilanz!D18 -> 2000 | D13: ='Bilanz IST'!D18 -> 0 | E13: -2000 | F13: -1 | G13: =Planbilanz!E18 -> 3380 | H13: ='Bilanz IST'!E18 -> 0 | I13: -3380 | J13: -1 | K13: =Planbilanz!F18 -> 4210 | L13: ='Bilanz IST'!F18 -> 0 | M13: -4210 | N13: -1
B14: Summe Anlagevermögen | C14: =SUM(C7:C13) -> 32762.66667 | D14: =SUM(D7:D13) -> 0 | E14: =D14-C14 -> -32762.66667 | F14: -1 | G14: =SUM(G7:G13) -> 28447.33333 | H14: =SUM(H7:H13) -> 0 | I14: -28447.33333 | J14: -1 | K14: =SUM(K7:K13) -> 14292 | L14: =SUM(L7:L13) -> 0 | M14: -14292 | N14: -1
B15: B. Umlaufvermögen
A16: 8 | B16: I. Vorräte:
A17: 9 | B17: 1. Waren/Material | C17: =Planbilanz!D22 -> 300 | D17: ='Bilanz IST'!D22 -> 0 | E17: =D17-C17 -> -300 | F17: =IF(C17=0,"",IF((D17-C17)/C17>1,">100%",(D17-C17)/C17)) -> -1 | G17: =Planbilanz!E22 -> 300 | H17: ='Bilanz IST'!E22 -> 0 | I17: -300 | J17: =IF(G17=0,"",IF((H17-G17)/G17>1,">100%",(H17-G17)/G17)) -> -1 | K17: =Planbilanz!F22 -> 300 | L17: ='Bilanz IST'!F22 -> 0 | M17: -300 | N17: =IF(K17=0,"",IF((L17-K17)/K17>1,">100%",(L17-K17)/K17)) -> -1
A18: 10 | B18: 2. Halbfertige und fertige Erzeugnisse | C18: =Planbilanz!D23 -> 3000 | D18: ='Bilanz IST'!D23 -> 0 | E18: -3000 | F18: -1 | G18: =Planbilanz!E23 -> 10000 | H18: ='Bilanz IST'!E23 -> 0 | I18: -10000 | J18: =IF(G18=0,"",IF((H18-G18)/G18>1,">100%",(H18-G18)/G18)) -> -1 | K18: =Planbilanz!F23 -> 0 | L18: ='Bilanz IST'!F23 -> 0 | M18: 0 | N18: =IF(K18=0,"",IF((L18-K18)/K18>1,">100%",(L18-K18)/K18)) -> 
A19: 11 | B19: II. Forderungen | C19: =Planbilanz!D24 -> 27000 | D19: ='Bilanz IST'!D24 -> 0 | E19: -27000 | F19: -1 | G19: =Planbilanz!E24 -> 88008.75 | H19: ='Bilanz IST'!E24 -> 0 | I19: -88008.75 | J19: -1 | K19: =Planbilanz!F24 -> 148852.5 | L19: ='Bilanz IST'!F24 -> 0 | M19: -148852.5 | N19: -1
A20: 12 | B20: III. Sonstige Forderungen | C20: =Planbilanz!D25 -> 0 | D20: ='Bilanz IST'!D25 -> 0 | E20: 0 | G20: =Planbilanz!E25 -> 0 | H20: ='Bilanz IST'!E25 -> 0 | I20: 0 | K20: =Planbilanz!F25 -> 0 | L20: ='Bilanz IST'!F25 -> 0 | M20: 0
A21: 13 | B21: IV. Kassa, Guthaben | C21: =Planbilanz!D26 -> 23601.40704 | D21: ='Bilanz IST'!D26 -> 0 | E21: -23601.40704 | F21: -1 | G21: =Planbilanz!E26 -> 33223.54978 | H21: ='Bilanz IST'!E26 -> 0 | I21: -33223.54978 | J21: -1 | K21: =Planbilanz!F26 -> 155646.8096 | L21: ='Bilanz IST'!F26 -> 0 | M21: -155646.8096 | N21: -1
B22: Summe Umlaufvermögen | C22: =SUM(C17:C21) -> 53901.40704 | D22: =SUM(D17:D21) -> 0 | E22: -53901.40704 | F22: -1 | G22: =SUM(G17:G21) -> 131532.2998 | H22: =SUM(H17:H21) -> 0 | I22: -131532.2998 | J22: -1 | K22: =SUM(K17:K21) -> 304799.3096 | L22: =SUM(L17:L21) -> 0 | M22: -304799.3096 | N22: -1
B23: C. Rechnungsabgrenzungsposten | C23: =Planbilanz!D28 -> 0 | D23: ='Bilanz IST'!D28 -> 0 | E23: 0 | G23: =Planbilanz!E28 -> 0 | H23: ='Bilanz IST'!E28 -> 0 | I23: 0 | K23: =Planbilanz!F28 -> 0 | L23: ='Bilanz IST'!F28 -> 0 | M23: 0
A24: Summe Aktiva | C24: =+C14+C22+C23 -> 86664.0737 | D24: =+D14+D22+D23 -> 0 | E24: -86664.0737 | F24: -1 | G24: =+G14+G22+G23 -> 159979.6331 | H24: =+H14+H22+H23 -> 0 | I24: -159979.6331 | J24: -1 | K24: =+K14+K22+K23 -> 319091.3096 | L24: =+L14+L22+L23 -> 0 | M24: -319091.3096 | N24: -1
C26: Bilanz SOLL-IST-Vergleich 2/2
C28: =C4 -> 2017 | G28: =G4 -> 2018 | K28: =K4 -> 2019
A29: Nr | B29: Passiva | C29: Soll | D29: Ist | E29: Abweichung | F29: % | G29: Soll | H29: Ist | I29: Abweichung | J29: % | K29: Soll | L29: Ist | M29: Abweichung | N29: %
B30: A. Eigenkapital
A31: 14 | B31: I. Nennkapital (Grund-, Stammkapital) | C31: =Planbilanz!D38 -> 52500 | D31: ='Bilanz IST'!D39 -> 0 | E31: =D31-C31 -> -52500 | F31: =IF(C31=0,"",IF((D31-C31)/C31>1,">100%",(D31-C31)/C31)) -> -1 | G31: =Planbilanz!E38 -> 52500 | H31: ='Bilanz IST'!E39 -> 0 | I31: =H31-G31 -> -52500 | J31: =IF(G31=0,"",IF((H31-G31)/G31>1,">100%",(H31-G31)/G31)) -> -1 | K31: =Planbilanz!F38 -> 52500 | L31: ='Bilanz IST'!F39 -> 0 | M31: =L31-K31 -> -52500 | N31: =IF(K31=0,"",IF((L31-K31)/K31>1,">100%",(L31-K31)/K31)) -> -1
A32: 15 | B32: II. Kapitalrücklagen | C32: =Planbilanz!D39 -> 0 | D32: ='Bilanz IST'!D40 -> 0 | E32: 0 | F32: =IF(C32=0,"",IF((D32-C32)/C32>1,">100%",(D32-C32)/C32)) ->  | G32: =Planbilanz!E39 -> 0 | H32: ='Bilanz IST'!E40 -> 0 | I32: 0 | J32: =IF(G32=0,"",IF((H32-G32)/G32>1,">100%",(H32-G32)/G32)) ->  | K32: =Planbilanz!F39 -> 0 | L32: ='Bilanz IST'!F40 -> 0 | M32: 0 | N32: =IF(K32=0,"",IF((L32-K32)/K32>1,">100%",(L32-K32)/K32)) -> 
A33: 16 | B33: III. Gewinnrücklagen | C33: =Planbilanz!D40 -> 0 | D33: ='Bilanz IST'!D41 -> 0 | E33: 0 | G33: =Planbilanz!E40 -> 0 | H33: ='Bilanz IST'!E41 -> 0 | I33: 0 | K33: =Planbilanz!F40 -> 0 | L33: ='Bilanz IST'!F41 -> 0 | M33: 0
A34: 17 | B34: IV. Bilanzgewinn/Bilanzverlust | C34: =Planbilanz!D41 -> -131509.3263 | D34: ='Bilanz IST'!D42 -> 0 | E34: 131509.3263 | F34: -1 | G34: =Planbilanz!E41 -> -77280.74716 | H34: ='Bilanz IST'!E42 -> 0 | I34: 77280.74716 | J34: -1 | K34: =Planbilanz!F41 -> 181955.7411 | L34: ='Bilanz IST'!F42 -> 0 | M34: -181955.7411 | N34: -1
A35: 18 | B35: V. Einlagen stiller Gesellschafter | C35: =Planbilanz!D42 -> 0 | D35: ='Bilanz IST'!D43 -> 0 | E35: =D35-C35 -> 0 | F35: =IF(C35=0,"",IF((D35-C35)/C35>1,">100%",(D35-C35)/C35)) ->  | G35: =Planbilanz!E42 -> 35000 | H35: ='Bilanz IST'!E43 -> 0 | I35: =H35-G35 -> -35000 | J35: =IF(G35=0,"",IF((H35-G35)/G35>1,">100%",(H35-G35)/G35)) -> -1 | K35: =Planbilanz!F42 -> 0 | L35: ='Bilanz IST'!F43 -> 0 | M35: =L35-K35 -> 0 | N35: =IF(K35=0,"",IF((L35-K35)/K35>1,">100%",(L35-K35)/K35)) -> 
B36: Summe Eigenkapital | C36: =SUM(C31:C35) -> -79009.3263 | D36: =SUM(D31:D35) -> 0 | E36: 79009.3263 | F36: -1 | G36: =SUM(G31:G35) -> 10219.25284 | H36: =SUM(H31:H35) -> 0 | I36: -10219.25284 | J36: -1 | K36: =SUM(K31:K35) -> 234455.7411 | L36: =SUM(L31:L35) -> 0 | M36: -234455.7411 | N36: -1
B37: B. Verbindlichkeiten/Rückstellungen
A38: 19 | B38: 1. Gegenüber Kreditinstituten | C38: =Planbilanz!D45 -> 79500 | D38: ='Bilanz IST'!D47 -> 0 | E38: -79500 | F38: -1 | G38: =Planbilanz!E45 -> 80500 | H38: ='Bilanz IST'!E47 -> 0 | I38: -80500 | J38: -1 | K38: =Planbilanz!F45 -> 0 | L38: ='Bilanz IST'!F47 -> 0 | M38: 0
A39: 20 | B39: 2. Gesellschafterdarlehen | C39: =Planbilanz!D46 -> 75000 | D39: ='Bilanz IST'!D48 -> 0 | E39: -75000 | F39: -1 | G39: =Planbilanz!E46 -> 50000 | H39: ='Bilanz IST'!E48 -> 0 | I39: -50000 | J39: -1 | K39: =Planbilanz!F46 -> 0 | L39: ='Bilanz IST'!F48 -> 0 | M39: 0
A40: 21 | B40: 3. Aus Lieferungen/Leistungen | C40: =Planbilanz!D47 -> 6862 | D40: ='Bilanz IST'!D49 -> 0 | E40: -6862 | F40: -1 | G40: =Planbilanz!E47 -> 1102.96 | H40: ='Bilanz IST'!E49 -> 0 | I40: -1102.96 | J40: -1 | K40: =Planbilanz!F47 -> 1337.416 | L40: ='Bilanz IST'!F49 -> 0 | M40: -1337.416 | N40: -1
A41: 22 | B41: 4. Sonstige Verbindlichkeiten (Steuern, etc) | C41: =Planbilanz!D48 -> 4311.4 | D41: ='Bilanz IST'!D50 -> 0 | E41: -4311.4 | F41: -1 | G41: =Planbilanz!E48 -> 18157.42028 | H41: ='Bilanz IST'!E50 -> 0 | I41: -18157.42028 | J41: -1 | K41: =Planbilanz!F48 -> 83298.15243 | L41: ='Bilanz IST'!F50 -> 0 | M41: -83298.15243 | N41: -1
A42: 23 | B42: 5. Rückstellungen (nur ist) | D42: ='Bilanz IST'!D45 -> 0 | H42: ='Bilanz IST'!E45 -> 0 | L42: ='Bilanz IST'!F45 -> 0
B43: Summe Verbindlichkeiten | C43: =SUM(C38:C42) -> 165673.4 | D43: =SUM(D38:D42) -> 0 | E43: -165673.4 | F43: =IF(C43=0,"",IF((D43-C43)/C43>1,">100%",(D43-C43)/C43)) -> -1 | G43: =SUM(G38:G42) -> 149760.3803 | H43: =SUM(H38:H42) -> 0 | I43: -149760.3803 | J43: =IF(G43=0,"",IF((H43-G43)/G43>1,">100%",(H43-G43)/G43)) -> -1 | K43: =SUM(K38:K42) -> 84635.56843 | L43: =SUM(L38:L42) -> 0 | M43: -84635.56843 | N43: =IF(K43=0,"",IF((L43-K43)/K43>1,">100%",(L43-K43)/K43)) -> -1
B44: C. Rechnungsabgrenzungsposten | C44: =Planbilanz!D50 -> 0 | D44: ='Bilanz IST'!D52 -> 0 | E44: =D44-C44 -> 0 | F44: =IF(C44=0,"",IF((D44-C44)/C44>1,">100%",(D44-C44)/C44)) ->  | G44: =Planbilanz!E50 -> 0 | H44: ='Bilanz IST'!E52 -> 0 | I44: =H44-G44 -> 0 | J44: =IF(G44=0,"",IF((H44-G44)/G44>1,">100%",(H44-G44)/G44)) ->  | K44: =Planbilanz!F50 -> 0 | L44: ='Bilanz IST'!F52 -> 0 | M44: =L44-K44 -> 0 | N44: =IF(K44=0,"",IF((L44-K44)/K44>1,">100%",(L44-K44)/K44)) -> 
A45: Summe Passiva | C45: =+C44+C43+C36 -> 86664.0737 | D45: =+D44+D43+D36 -> 0 | E45: =D45-C45 -> -86664.0737 | F45: =IF(C45=0,"",IF((D45-C45)/C45>1,">100%",(D45-C45)/C45)) -> -1 | G45: =+G44+G43+G36 -> 159979.6331 | H45: =+H44+H43+H36 -> 0 | I45: =H45-G45 -> -159979.6331 | J45: =IF(G45=0,"",IF((H45-G45)/G45>1,">100%",(H45-G45)/G45)) -> -1 | K45: =+K44+K43+K36 -> 319091.3096 | L45: =+L44+L43+L36 -> 0 | M45: =L45-K45 -> -319091.3096 | N45: =IF(K45=0,"",IF((L45-K45)/K45>1,">100%",(L45-K45)/K45)) -> -1
